Cogmind - Beta 11 X7 @@@ ROGUE MODE // 2021.08.31 @ 13:56:04 Player: Vectis Result: Escaped! Performance ------------- Evolutions (9) 4500 Regions Visited (34) 6800 Robots Destroyed (591) 2955 Value Destroyed (26712) 26712 Prototype IDs (114) 2280 Alien Tech Used (10) 2000 Bonus (20203) 20203 TOTAL SCORE: 65450 Bonus ------- Triggered High Security 500 High Alert Combat Kills 5543 Follower Combat Kills 3662 Network Hubs Disabled 400 Aligned with FarCom 300 Met Imprinter 300 Met Zhirov 300 Met Warlord at Base 500 MAIN.C Attacked Warlord 500 Warlord Defense Kill 154 Built Enhanced Grunts 300 Met R17 at Cetus 500 Hacked Protovariant 500 Met R17 at Research 2000 Met Warlord at Research 2000 Scanned by Researcher 500 Win 3000 Friendly Fire -756 Cogmind --------- Core Integrity 1575/1850 Matter 270/300 Energy 349/350 System Corruption 0% Temperature Cool (0) Movement Rolling (100) Location To Epsilon Eridani Parts ------- > --- POWER (2) -------- (None) > --- PROPULSION (8) --- Myomer Leg Compact Wheel > --- UTILITY (12) ----- Medium Storage Unit Advanced Signal Interpreter Long-range Terrain Scanner Advanced Targeting Computer Experimental Target Analyzer Experimental Core Analyzer Advanced Hacking Suite > --- WEAPON (3) ------- (None) > --- INVENTORY (10) --- Subatomic Replicator Spacefold Activator Core Stripper Peak State ------------ > --- POWER ------------ Quantum Reactor Quantum Reactor > --- PROPULSION ------- Centrium Heavy Treads Biometal Heavy Treads Biometal Heavy Treads Experimental Biometal Heavy Treads > --- UTILITY ---------- Huge Storage Unit Advanced Signal Interpreter Advanced Targeting Computer Experimental Targeting Computer Advanced Target Analyzer Advanced Armor Integrity Analyzer Phase Armor Advanced Force Field System Mapper > --- WEAPON ----------- Hypervelocity Railgun Core Stripper > --- INVENTORY -------- Vortex Chain Reactor Advanced Heavy Siege Treads Advanced Heavy Siege Treads Advanced Heavy Siege Treads Experimental Energy Well Experimental Matter Compressor Experimental Sensor Array Advanced Weapon Cycler Transdimensional Reconstructor Subatomic Replicator Hypervelocity Railgun Helical Railgun Helical Railgun Helical Railgun 8R-AWN's Boregun Omega Cannon Micro-nuke Launcher Vortex Lance [Rating: 224] Favorites ----------- Power Quantum Reactor Engine Improved Deuterium Engine Power Core Light Nuclear Core Reactor Quantum Reactor Propulsion Light Treads Treads Light Treads Leg Advanced Myomer Leg Wheel Compact Wheel Utility Humpback Device Improved Heat Sink Storage Humpback Processor Experimental Targeting Computer Hackware Hacking Suite Protection Improved Medium Armor Plating Artifact Phase Armor Weapon Cooled Particle Cannon Energy Gun Improved EM Shotgun Energy Cannon Cooled Particle Cannon Ballistic Gun Enhanced Autogun Ballistic Cannon AWS/Autocannon Launcher Rocket Launcher Special Weapon Remote Datajack Impact Weapon Heavy Flail Slashing Weapon Katana Piercing Weapon Vortex Lance Special Melee Weapon Datajack Build | -11 -10 -10 -9 -9 -9 -8 -8 -8 -7 -7 -7 -7 -6 -6 -6 -6 -6 -6 -5 -5 -5 -5 -4 -4 -4 -4 -4 -3 -3 -3 -2 -2 -2 -1 ------- Run | Scr Mat Min Mat Min Exi Min Mat Sto Fac Low Low Zio Pro Fac Ext Cet Arc Hub Fac Upp Upp Zhi Pro Fac Upp Upp War Pro Res Tes Res Qua Sec Acc Slots Evolved 18 | . . . 2 . . . 2 . 2 . . . . 2 . . . . 2 . . . . 2 . . . . 2 . 2 . . 2 Power 1 | . . . . . . . . . . . . . . . . . . . . . . . . . . . . . 1 . . . . . Propulsion 6 | . . . 1 . . . 1 . . . . . . 1 . . . . . . . . . . . . . . 1 . 2 . . . Utility 10 | . . . 1 . . . . . 2 . . . . 1 . . . . 2 . . . . 2 . . . . . . . . . 2 Weapon 1 | . . . . . . . 1 . . . . . . . . . . . . . . . . . . . . . . . . . . . Parts Attached 727 | . 16 2 50 2 33 9 28 29 25 13 10 23 2 28 24 13 23 23 19 6 13 9 15 38 5 23 27 16 34 26 15 55 64 9 Power 35 | . 1 2 3 . 2 . 2 1 1 . . 1 1 1 1 . 2 . 1 . . 2 2 4 . . 1 . 3 1 1 1 1 . Engine 12 | . 1 2 3 . . . 2 1 . . . . . 1 1 . . . . . . . . . . . . . 1 . . . . . Core 12 | . . . . . 2 . . . 1 . . 1 1 . . . 2 . 1 . . 1 1 1 . . 1 . . . . . . . Reactor 11 | . . . . . . . . . . . . . . . . . . . . . . 1 1 3 . . . . 2 1 1 1 1 . Propulsion 132 | . 3 . 12 . 7 . 4 13 5 1 2 8 . 4 6 . 6 5 1 . 4 . 2 8 . 6 4 4 5 2 7 5 6 2 Treads 107 | . 3 . 12 . 3 . . 6 5 1 2 8 . 4 6 . 6 5 1 . 4 . 2 2 . 4 4 4 5 2 7 5 6 . Leg 24 | . . . . . 4 . 4 7 . . . . . . . . . . . . . . . 6 . 2 . . . . . . . 1 Wheel 1 | . . . . . . . . . . . . . . . . . . . . . . . . . . . . . . . . . . 1 Hover . | . . . . . . . . . . . . . . . . . . . . . . . . . . . . . . . . . . . Flight . | . . . . . . . . . . . . . . . . . . . . . . . . . . . . . . . . . . . Utility 308 | . 2 . 18 . 15 2 6 7 9 4 . 9 1 16 9 4 9 10 10 4 5 3 9 17 2 11 13 11 22 12 5 21 36 6 Device 138 | . . . 7 . 3 1 2 2 4 3 . 1 1 9 4 . 6 1 5 1 2 2 7 9 1 3 6 4 7 3 2 15 25 2 Storage 21 | . 1 . 1 . 5 . . 2 . . . 2 . 1 . . 1 2 . . . . . . . . . 1 2 2 . . . 1 Processor 29 | . . . 1 . . . . . . . . 6 . . 1 . . . . . . . . 1 . 2 2 1 7 1 2 . 4 1 Hackware 12 | . 1 . . . . . . . . . . . . . . . . 3 1 . 1 . . 2 . . . . 1 1 . . . 2 Protection 103 | . . . 9 . 7 1 4 3 5 1 . . . 6 4 4 2 4 4 3 2 1 2 5 1 6 5 5 5 5 1 2 6 . Artifact 5 | . . . . . . . . . . . . . . . . . . . . . . . . . . . . . . . . 4 1 . Weapon 252 | . 10 . 17 2 9 7 16 8 10 8 8 5 . 7 8 9 6 8 7 2 4 4 2 9 3 6 9 1 4 11 2 28 21 1 Energy Gun 32 | . 7 . 1 . . . . . . . . . . . . 2 . 2 2 . 2 1 1 6 . 1 4 . 1 1 . . . 1 Energy Cannon 46 | . . . 9 1 2 3 1 3 4 6 5 3 . 2 4 1 . . . 1 . . . . . . . . 1 . . . . . Ballistic Gun 134 | . . . 1 . 3 2 12 3 3 . 3 . . 4 4 6 6 5 5 1 1 2 1 3 2 4 4 1 2 7 2 27 20 . Ballistic Cannon 4 | . . . . . . . . . 1 1 . . . . . . . . . . . 1 . . . . . . . . . . 1 . Launcher 25 | . 3 . 3 1 2 2 3 1 2 1 . 2 . . . . . 1 . . 1 . . . 1 1 . . . 1 . . . . Special Weapon 1 | . . . . . . . . . . . . . . 1 . . . . . . . . . . . . . . . . . . . . Impact Weapon 2 | . . . . . . . . 1 . . . . . . . . . . . . . . . . . . . . . . . 1 . . Slashing Weapon 2 | . . . . . 2 . . . . . . . . . . . . . . . . . . . . . . . . . . . . . Piercing Weapon 3 | . . . . . . . . . . . . . . . . . . . . . . . . . . . 1 . . 2 . . . . Special Melee Weapon 3 | . . . 3 . . . . . . . . . . . . . . . . . . . . . . . . . . . . . . . Unidentified Prototypes 67 | . 1 . 2 . 5 . 2 1 1 1 . 8 . . . 3 2 1 1 . . 3 . 3 . . 8 . 2 6 2 10 5 . Corrupted Parts 11 | . 1 2 . . . . . . . . . . . . . . 4 1 . . . . . . . 2 . . . 1 . . . . System Corruption 56 | . 1 5 . . . . . . . . . . . . . . 21 10 . . . . . . . 12 . . . 7 . . . . Parts Lost 72 | . 1 . 1 . 4 1 1 1 4 . . . . 2 1 . . 1 1 . 1 . 2 14 . 6 1 5 1 . . . 21 3 Power 5 | . . . . . 1 . . . 1 . . . . . . . . . . . . . . 1 . . . . . . . . 2 . Propulsion 24 | . . . 1 . 2 . . 1 1 . . . . 1 1 . . . . . . . 1 7 . 1 . . . . . . 8 . Utility 30 | . . . . . 1 1 . . 2 . . . . . . . . . . . 1 . 1 3 . 4 1 5 1 . . . 8 2 Weapon 13 | . 1 . . . . . 1 . . . . . . 1 . . . 1 1 . . . . 3 . 1 . . . . . . 3 1 Highest Loss Streak 13 | . 1 . 1 . 2 1 1 1 2 . . . . 1 1 . . 1 1 . 1 . 1 6 . 3 1 4 1 . . . 13 3 Average Slot Usage (%) 89 | . 90 100 98 100 87 86 89 89 89 87 91 81 92 91 93 92 86 85 87 88 91 97 99 98 100 95 93 89 91 84 82 79 79 40 Engine 4 | . 14 14 11 11 7 . 4 8 6 . . . . 3 6 6 4 . . . . . . . . . . . . . . . . . Core 2 | . . . . . 3 11 4 . . 7 7 6 7 2 . . 1 6 5 5 5 5 4 . 5 5 5 5 4 . . . . . Reactor 1 | . . . . . . . . . . . . . . . . . . . . . . . . 4 . . . . 3 7 8 8 7 . Treads 24 | . 27 28 32 33 30 . . 21 29 30 30 27 30 33 33 33 29 25 17 17 21 29 28 21 . 12 21 20 20 14 17 17 16 . Leg 3 | . . . . . 2 33 36 14 . . . . . . . . . . . . . . . 3 26 10 . . . . . . . 2 Device 5 | . . . . . . 8 . . 8 10 15 11 7 5 . . 1 . 6 1 4 8 14 16 15 10 12 17 15 4 4 6 14 5 Storage 7 | . 14 14 11 11 12 11 9 9 7 7 7 6 7 6 6 6 5 6 8 5 5 5 5 5 5 5 5 7 4 4 4 4 3 2 Processor 9 | . . . 3 11 1 . . . . . . 3 15 13 19 20 20 20 17 17 17 17 17 17 21 13 15 10 16 23 23 21 19 19 Hackware 2 | . 5 14 7 . . . . . . . . . . . . . . 2 7 11 10 5 1 2 5 5 5 1 3 4 4 4 1 5 Protection 6 | . . . 9 11 10 1 8 8 11 6 7 4 . 6 5 6 4 3 3 9 5 5 6 9 5 15 12 8 4 8 5 . 1 . Energy Gun 2 | . 27 28 2 . . . . . . . . . . . . . . . 1 . 3 4 8 10 6 5 5 5 1 . . . . 2 Energy Cannon 6 | . . . 18 20 12 11 1 4 19 22 22 18 23 11 . . . . . . . . . . . . . . 2 . . . . . Ballistic Gun 8 | . . . . . 2 3 25 21 2 . . . . 7 19 19 17 19 15 16 11 8 7 4 7 10 8 10 9 13 13 12 12 . Naked Turns 347 | . . . . . . . . . . . . 347 . . . . . . . . . . . . . . . . . . . . . . Heaviest Build 299 | 13 91 91 99 99 236 221 226 228 281 278 239 239 227 245 239 226 229 299 118 115 115 120 119 138 126 134 141 142 164 165 158 196 171 24 Greatest Support 320 | 20 40 40 60 60 80 80 100 95 89 89 89 89 89 112 109 106 190 190 160 160 160 80 100 120 120 144 151 156 200 210 290 315 320 16 Greatest Overweight (x) 5 | . 2 2 2 1 3 2 2 5 3 3 2 3 2 2 2 2 3 1 . . 1 1 1 1 1 1 1 . . . . . 1 1 Average Overweight (x) . | . 1 2 1 1 1 2 2 2 2 2 2 1 2 1 2 2 1 . . . . 1 1 . . . . . . . . . . . Largest Inventory Capacity 35 | 8 25 25 25 25 35 35 35 35 35 35 35 35 35 35 35 35 35 35 25 25 25 25 25 25 25 25 25 25 25 25 25 25 25 10 Average Capacity 29 | 8 24 25 25 25 28 35 35 35 35 35 35 32 35 35 35 35 31 34 25 25 25 25 25 25 25 25 25 25 25 25 25 25 24 8 Most Carried 35 | 6 22 25 25 25 35 35 35 35 35 35 35 35 35 35 35 35 35 35 25 25 25 25 25 25 25 25 25 25 25 25 25 25 25 4 Average Carried 27 | 6 13 24 24 25 26 33 34 34 34 34 33 30 35 33 34 34 23 33 24 24 24 23 24 23 24 24 24 24 24 24 24 24 24 4 Final Capacity 35 | 8 25 25 25 25 35 35 35 35 35 35 35 35 35 35 35 35 35 25 25 25 25 25 25 25 25 25 25 25 25 25 25 25 5 10 Final Carried 35 | 6 22 25 25 25 35 34 35 35 35 35 35 35 35 34 34 35 35 25 25 25 22 25 25 25 25 25 25 25 25 25 25 25 4 4 Class Distribution -------------------- 20% | Scavenger-Gunner 19% | Hauler-Gunner 13% | Hauler-Mutant 13% | Hauler-Tank 13% | Mutant 8% | Scavenger-Mutant 4% | Gunner Dominant Class ---------------- Mutant | -10/Materials Mutant | -10/Mines Scavenger-Mutant | -9/Materials Mutant | -9/Mines Hauler-Mutant | -9/Exiles Hauler-Mutant | -8/Mines Hauler-Tank | -8/Materials Hauler-Tank | -8/Storage Hauler-Tank | -7/Factory Hauler-Gunner | -7/Lower Caves Hauler-Gunner | -7/Lower Caves Hauler-Gunner | -7/Zion Hauler-Skirmisher | -6/Proximity Caves Hauler-Gunner | -6/Factory Hauler-Gunner | -6/Extension Hauler-Gunner | -6/Cetus Hauler-Mutant | -6/Archives Hauler-Gunner | -6/Hub_04(d) Scavenger-Mutant | -5/Factory Scavenger-Gunner | -5/Upper Caves Hacker-Gunner | -5/Upper Caves Gunner | -5/Zhirov Gunner | -4/Proximity Caves Gunner | -4/Factory Scavenger-Gunner | -4/Upper Caves Scavenger-Gunner | -4/Upper Caves Scavenger-Gunner | -4/Warlord Scavenger-Tank | -3/Proximity Caves Scavenger-Gunner | -3/Research Scavenger-Gunner | -3/Testing Scavenger-Gunner | -2/Research Scavenger-Gunner | -2/Quarantine Scavenger-Gunner | -2/Section 7 Hacker-Mutant | -1/Access Resources | -11 -10 -10 -9 -9 -9 -8 -8 -8 -7 -7 -7 -7 -6 -6 -6 -6 -6 -6 -5 -5 -5 -5 -4 -4 -4 -4 -4 -3 -3 -3 -2 -2 -2 -1 ----------- Run | Scr Mat Min Mat Min Exi Min Mat Sto Fac Low Low Zio Pro Fac Ext Cet Arc Hub Fac Upp Upp Zhi Pro Fac Upp Upp War Pro Res Tes Res Qua Sec Acc Matter Collected 24826 | 200 188 200 584 33 939 116 1003 1027 362 149 146 208 52 719 469 249 491 421 928 92 222 258 420 707 115 633 381 553 1046 1492 1145 2690 6588 . Remotely 468 | . . . . . . . . . . . . . . . . . . . 468 . . . . . . . . . . . . . . . Salvage Created 35116 | . 841 48 2167 28 629 6 1074 1829 1561 471 114 . 279 1408 207 374 423 672 666 51 279 290 1268 2703 134 1206 65 1239 1093 1692 1599 3848 6852 . Parts 1753 | . 50 4 137 16 87 3 65 87 81 20 5 . 16 61 21 18 28 38 30 1 14 14 47 102 9 46 4 37 46 81 74 160 351 . Haulers Intercepted 29 | . 2 . 6 . . . 1 6 2 1 . . . . . . . . 1 . . . . 3 . . . . 1 1 . 2 3 . Recyclers Shooed 32 | . . . 6 . . 1 5 . 1 . . . . 7 . . . 1 . . . . . 9 . . . . 1 . . . 1 . Parts Field Recycled . | . . . . . . . . . . . . . . . . . . . . . . . . . . . . . . . . . . . Retrieved Matter . | . . . . . . . . . . . . . . . . . . . . . . . . . . . . . . . . . . . Parts Self-Destructed 300 | . . . . . . . . . . 20 2 4 16 . . . . . . 1 8 13 46 . 9 43 94 44 . . . . . . Prevented 10 | . . . . . . . . . . . . . . . . . . . . . . . . . . 2 8 . . . . . . . Kills | -11 -10 -10 -9 -9 -9 -8 -8 -8 -7 -7 -7 -7 -6 -6 -6 -6 -6 -6 -5 -5 -5 -5 -4 -4 -4 -4 -4 -3 -3 -3 -2 -2 -2 -1 ------- Run | Scr Mat Min Mat Min Exi Min Mat Sto Fac Low Low Zio Pro Fac Ext Cet Arc Hub Fac Upp Upp Zhi Pro Fac Upp Upp War Pro Res Tes Res Qua Sec Acc Combat Hostiles Destroyed 435 | . 15 1 35 3 3 4 18 23 29 10 2 . 7 14 3 4 1 14 8 1 6 . 16 29 2 22 1 16 11 17 19 30 71 . Melee 5 | . . . . . 1 . . . 1 . . . . . . . . . 1 . . . 1 . . . . . . . . 1 . . Guns 301 | . 8 . 1 . . . 13 20 1 . . . . 5 3 4 1 12 7 1 5 . 15 27 . 19 1 16 8 17 19 28 70 . Cannons 65 | . . . 24 . . . . . 17 6 2 . 7 7 . . . . . . . . . . . . . . 2 . . . . . AOE 53 | . 6 1 10 3 2 4 5 3 8 3 . . . . . . . 2 . . 1 . . . 2 3 . . . . . . . . Classes Destroyed 34 | . 7 . 4 1 3 . 1 . 1 . 1 . 1 1 . . . 1 . . 1 . 2 . . . . . 2 1 1 2 4 . Worker 33 | . 3 . 5 . . . 6 2 . . . . . 3 . . . 6 . . . . . 3 . . . . 1 2 . 2 . . Builder 18 | . . . . 1 . . . 2 3 . . . . . 2 . . 1 1 . . . . 2 . . . . . 3 . 1 2 . Tunneler 3 | . . . 1 1 . . 1 . . . . . . . . . . . . . . . . . . . . . . . . . . . Hauler 29 | . 2 . 6 . . . 1 6 2 1 . . . . . . . . 1 . . . . 3 . . . . 1 1 . 2 3 . Recycler 32 | . 1 . 4 . . . 6 3 4 . . . . 3 . . . . 1 . . . . 1 . . . . 1 1 . 5 2 . Carrier 1 | . . . . . . . . . . . . . . . . . . . . . . . . . . . . . . . 1 . . . Minesweeper 2 | . . . . . . . . . . . . . . . . . . . . . . . 1 . 1 . . . . . . . . . Mechanic 2 | . . . 1 . . . . . . . . . . . . . . . . . . . . . . . . . . . . . 1 . Operator 17 | . 3 . 1 . . . . 1 . . . . . 1 . . 9 1 . . . . . . . . . . . . . 1 . . Turret 1 | . . . . . 1 . . . . . . . . . . . . . . . . . . . . . . . . . . . . . Watcher 18 | . 3 . 5 . . . . 2 . . . . . 2 . . . . . . . . . . . . . . . 1 2 1 2 . Swarmer 78 | . 6 . 4 3 . 4 10 . 8 4 . . 3 . . . . 2 . . . . . 4 . 7 . 1 2 3 7 5 5 . Saboteur 3 | . . . . . . . . . . . . . . . . . . . . . . . 1 . . 1 . . . . . . 1 . Grunt 171 | . 9 1 21 . . . 2 13 13 5 1 . 2 3 . 2 . 6 6 . 3 . 10 15 . 2 . 8 4 6 3 3 33 . Brawler 17 | . . . . . . . . . . . . . 1 . . . . . . . 1 . 3 . . 5 . 3 . 1 1 2 . . Duelist 12 | . . . 1 . . . . . 1 . . . . . . . . 2 . . . . 1 . . 2 . 1 . 1 . . 3 . Protector 3 | . . . . . . . . . . . . . . . . . . . . . . . . . . . . . . . . 1 2 . Researcher 1 | . . . . . . . . . . . . . . . . . . . . . . . . . . . . . . . . 1 . . Sentry 44 | . . . 9 . . . 5 9 2 . . . . 2 2 . 1 . . . . . 1 2 . 1 . 1 2 . 3 1 3 . Demolisher 2 | . . . . . . . . . . . . . . . . . . . . . . . . . . . . . 2 . . . . . Specialist 5 | . . . . . . . . . . . . . . . . . . 2 . . . . . . . . . . . . . 3 . . Hunter 35 | . . . . . . . 1 1 . . . . . 5 . . . 1 . . . . . 4 2 4 1 . . 2 2 10 2 . Programmer 40 | . . . . . . . . . 5 1 . . 1 3 . . . 1 2 1 . . . 4 . . . 1 . 4 . 4 13 . Heavy 1 | . . . . . . . . . . . . . . . . . . . . . . . . . . . . . . . . . 1 . Q-Series 3 | . . . . . . . . . . . . . . . . . . . . . . . . . . . . . . . . . 3 . Behemoth 5 | . . . . . . . . . . . . . . 1 1 . . . . . . . . . . . . 1 . . . . 2 . Cetus Guard 2 | . . . . . . . . . . . . . . . . 2 . . . . . . . . . . . . . . . . . . Enhanced Grunt 1 | . . . . . . . . . . . . . . . . 1 . . . . . . . . . . . . . . . . . . Investigator 1 | . . . . . . . . . . . . . . . . . . . . . . . . . . . . . . 1 . . . . Striker 4 | . . . . . . . . . . . . . . . . . . . . . . . . . . . . . 1 . 3 . . . Executioner 1 | . . . . . . . . . . . . . . . . . . . . . . . . . . . . . . . . . 1 . Alpha 7 2 | . . . . . . . . . . . . . . . . . . . . . . . . . . . . . . . . . 2 . Fortress 1 | . . . . . . . . . . . . . . . . . . . . . . . . . . . . . . . . 1 . . Zionite 8 | . . . . . 8 . . . . . . . . . . . . . . . . . . . . . . . . . . . . . Master Thief 2 | . . . . . . . . . . . . . . . . . . . . . 2 . . . . . . . . . . . . . Assembled 2 | . . . . . 2 . . . . . . . . . . . . . . . . . . . . . . . . . . . . . Savage 1 | . . . . . . . . . . . . . . 1 . . . . . . . . . . . . . . . . . . . . Guerrilla 1 | . . . . . . . . . . . . . . . . 1 . . . . . . . . . . . . . . . . . . Mutant 1 | . . . . . . . . . . . 1 . . . . . . . . . . . . . . . . . . . . . . . Best Kill Streak 13 | . 5 1 11 3 7 4 5 8 9 5 1 . 3 4 1 3 3 12 7 1 4 . 7 8 2 13 1 6 4 6 5 8 8 . Combat Bots Only 13 | . 3 1 5 2 2 4 4 8 7 5 1 . 3 2 1 3 1 7 6 1 4 . 7 7 2 13 1 6 3 4 5 5 8 . Max Kills in Single Turn 4 | . 3 1 3 2 1 2 4 2 2 2 1 . 2 1 1 2 1 3 2 1 1 . 2 2 2 2 1 1 2 3 1 3 2 . Gunslinging 1 | . 1 . . . . . 1 . . . . . . . . . . 1 . . . . 1 . . 1 . . . 1 . 1 1 . Exploded 4 | . 3 1 3 1 1 2 4 1 2 2 . . . . . . . 1 . . 1 . . . 2 2 . . . . . . . . Melee 1 | . . . . . 1 . . . 1 . . . . . . . . . 1 . . . 1 . . . . . . . . 1 . . Uniques/NPCs Destroyed 5 | . . . . . 4 1 . . . . . . . . . . . . . . . . . . . . . . . . . . . . 8R-AWN (-9/Exiles) EX-HEX (-9/Exiles) EX-BIN (-9/Exiles) EX-DEC (-9/Exiles) CL-ANK (-8/Mines) Combat | -11 -10 -10 -9 -9 -9 -8 -8 -8 -7 -7 -7 -7 -6 -6 -6 -6 -6 -6 -5 -5 -5 -5 -4 -4 -4 -4 -4 -3 -3 -3 -2 -2 -2 -1 -------- Run | Scr Mat Min Mat Min Exi Min Mat Sto Fac Low Low Zio Pro Fac Ext Cet Arc Hub Fac Upp Upp Zhi Pro Fac Upp Upp War Pro Res Tes Res Qua Sec Acc Damage Taken 33244 | . 527 11 968 71 970 248 907 1226 1534 326 78 . 128 1713 413 50 193 2245 481 118 627 . 1393 2348 183 1727 263 940 705 912 773 2420 7991 755 Core 3187 | . 80 . 138 . 189 64 146 108 96 18 . . 12 52 . . . 161 . . 8 . 18 186 . 91 94 40 71 10 54 573 703 275 Absorbed by Shields 8860 | . . . . . . . . . . . . . . . . 49 . . . . . . 111 213 . . 138 435 467 907 806 1747 3987 . Reduced by Siege Mode 1738 | . . . . . . . . . . . . . . . . . . 47 16 . 21 . . . . . . 35 6 107 70 199 1237 . Redirected to Core 551 | . . . . . . . . . . . . . . . . . . . . . . . . . . . . . . . . 551 . . Core Remaining (%) 66 | 100 . 68 . . . 2 . 53 . . . . 82 . . . . 74 . . . . 97 . . . . 64 . 93 . . 16 85 Volleys Fired 1559 | . 40 1 96 3 99 23 59 85 60 11 7 . 8 76 22 12 38 54 37 5 36 22 31 107 3 40 28 39 32 63 50 105 265 2 Largest 3 | . 2 2 2 1 1 2 3 3 3 3 3 . 3 3 3 3 3 3 3 3 3 1 3 3 3 3 3 3 3 3 3 3 3 1 Hottest 270 | . 90 90 136 33 33 136 79 270 270 93 90 . 90 270 90 240 75 240 85 85 135 81 177 250 200 153 156 161 178 113 120 120 120 94 Shots Fired 3788 | . 79 2 184 3 99 30 175 249 163 33 22 . 24 206 56 34 40 126 82 15 66 22 91 280 9 116 43 116 92 162 150 288 729 2 Gun 3219 | . 76 2 12 . 93 14 171 235 14 . 12 . . 111 51 34 40 122 82 15 59 22 91 280 7 114 43 116 72 162 150 288 729 2 Cannon 516 | . . . 164 . . 14 . 10 143 31 10 . 24 95 5 . . . . . . . . . . . . . 20 . . . . . Launcher 53 | . 3 . 8 3 6 2 4 4 6 2 . . . . . . . 4 . . 7 . . . 2 2 . . . . . . . . Special . | . . . . . . . . . . . . . . . . . . . . . . . . . . . . . . . . . . . Kinetic 2729 | . . . . . 93 14 171 235 18 . 15 . . 111 51 33 40 116 72 15 30 2 57 85 2 76 24 78 62 162 150 288 729 . Thermal 916 | . . . 164 . . 14 . 10 139 31 7 . 24 95 5 1 . 6 10 . 29 20 34 195 5 38 19 38 30 . . . . 2 Explosive 53 | . 3 . 8 3 6 2 4 4 6 2 . . . . . . . 4 . . 7 . . . 2 2 . . . . . . . . Electromagnetic 90 | . 76 2 12 . . . . . . . . . . . . . . . . . . . . . . . . . . . . . . . Robot Hit Streak 60 | . 9 3 12 2 7 7 32 16 12 6 8 . 10 18 10 8 22 38 22 24 9 13 20 30 5 59 7 31 23 60 32 35 58 6 Robot Miss Streak 10 | . 8 1 3 . 10 2 4 5 4 4 3 . 1 3 2 2 2 3 2 3 3 1 2 3 2 4 2 1 2 3 4 3 2 1 Penetration Max 2 | . . . . . 2 . . . . . . . . . . . 1 1 1 . . . 1 1 . 1 1 1 1 2 1 2 2 . Secondary Targets 65 | . 1 . . . . . 3 2 . . . . . . . 1 . 2 . . 1 . 2 4 . 5 . 2 . 6 7 10 19 . Max Gunslinging Chain 2 | . 1 . . . . . 2 1 . . . . . . . 1 . 1 . . 1 . 1 1 . 1 . 1 . 1 1 2 1 . Autonomous 7 | . . . . . . . . . 4 . 3 . . . . . . . . . . . . . . . . . . . . . . . Shots Hit Robots 2792 | . 54 2 116 1 77 23 118 171 101 16 15 . 13 145 41 24 33 89 61 7 31 21 74 209 5 85 22 101 67 117 110 229 613 1 Core Hits 1268 | . 38 1 68 7 34 8 49 82 51 15 5 . 9 44 10 12 18 51 22 2 13 5 35 72 6 43 5 41 30 63 54 94 281 . Critical Kills 185 | . . . . . 5 . . . 3 1 . . . 1 . 3 7 1 3 . 2 1 9 15 1 3 . 1 3 11 21 34 60 . Critical Parts Destroyed 361 | . . . . . 13 4 . 2 . . . . . . 2 2 12 3 6 1 1 6 9 34 . 5 . 1 1 32 26 61 140 . Critical Strikes 598 | . . . . . 21 6 . 2 4 1 . . . 1 2 5 19 4 9 1 3 9 19 58 1 11 . 6 5 43 50 95 223 . Burn 13 | . . . . . . . . . . . . . . . . . . . . . . . . 7 . 1 . 4 1 . . . . . Meltdown 6 | . . . . . . . . . 3 1 . . . 1 . . . . . . . . . . . . . . 1 . . . . . Destroy 576 | . . . . . 19 6 . 2 . . . . . . 2 5 19 4 9 1 3 9 19 51 1 10 . 2 3 43 50 95 223 . Blast 1 | . . . . . . . . . 1 . . . . . . . . . . . . . . . . . . . . . . . . . Sever 2 | . . . . . 2 . . . . . . . . . . . . . . . . . . . . . . . . . . . . . Melee Attacks 53 | . . . 1 . 42 . . 2 . . . . . . . . . . . . . . . . . . 1 . . 2 . 5 . . Kinetic 5 | . . . . . . . . . . . . . . . . . . . . . . . . . . . . . . . . 5 . . Impact 2 | . . . . . . . . 2 . . . . . . . . . . . . . . . . . . . . . . . . . . Slashing 42 | . . . . . 42 . . . . . . . . . . . . . . . . . . . . . . . . . . . . . Piercing . | . . . . . . . . . . . . . . . . . . . . . . . . . . . . . . . . . . . Entropic 3 | . . . . . . . . . . . . . . . . . . . . . . . . . . . 1 . . 2 . . . . Sneak Attacks 1 | . . . 1 . . . . . . . . . . . . . . . . . . . . . . . . . . . . . . . Combat Hostiles . | . . . . . . . . . . . . . . . . . . . . . . . . . . . . . . . . . . . Follow-up Attacks 7 | . . . . . 7 . . . . . . . . . . . . . . . . . . . . . . . . . . . . . Damage Inflicted 62276 | . 1256 55 3348 187 1961 677 2131 3235 3653 801 519 . 422 3404 717 479 683 2699 1687 223 1056 563 1811 6008 272 2570 401 2919 2237 2831 918 3392 9131 30 Guns 45445 | . 914 34 176 . 863 171 1771 2617 197 . 124 . . 1368 699 479 683 1549 1655 199 627 563 1811 5952 74 2206 401 2919 1558 2821 918 3187 8879 30 Cannons 9247 | . . . 2195 . . 173 . 53 2871 489 395 . 422 1992 . . . . . . . . . . . . . . 657 . . . . . Explosions 5592 | . 333 21 910 164 156 333 313 418 509 312 . . . . . . . 1132 . . 429 . . . 198 364 . . . . . . . . Melee 1079 | . . . . . 942 . . . . . . . . . . . . . . . . . . . . . . . . . . 137 . . Ramming 913 | . 9 . 67 23 . . 47 147 76 . . . . 44 18 . . 18 32 24 . . . 56 . . . . 22 10 . 68 252 . Kinetic 37151 | . . . . . 863 171 1771 2617 476 . 359 . . 1368 699 479 683 1549 1577 199 431 27 1159 1756 . 1415 324 1982 1304 2821 918 3324 8879 . Thermal 16725 | . 150 21 2195 . . 173 . 53 2592 489 160 . 422 1992 . . . . 78 . 196 536 652 4196 74 791 77 937 911 . . . . 30 Explosive 5109 | . 183 . 910 164 156 333 313 418 509 312 . . . . . . . 820 . . 429 . . . 198 364 . . . . . . . . Electromagnetic 1436 | . 914 34 176 . . . . . . . . . . . . . . 312 . . . . . . . . . . . . . . . . Impact . | . . . . . . . . . . . . . . . . . . . . . . . . . . . . . . . . . . . Slashing 942 | . . . . . 942 . . . . . . . . . . . . . . . . . . . . . . . . . . . . . Piercing . | . . . . . . . . . . . . . . . . . . . . . . . . . . . . . . . . . . . Highest Corruption 27 | . 1 6 . . . . . . 1 1 1 2 3 . . . 8 23 . . . . 3 4 4 26 27 10 . 12 . 3 7 . Average Corruption 3 | . 1 1 . . . . . . 1 1 1 1 2 . . . 3 5 . . . . 3 3 4 14 26 9 . 5 . 2 6 . Corruption Purged 23 | . . . . . . . . . . . . . . . . . 21 . . . . . . . . . . . . . . 2 . . Effects 257 | . 1 8 . . . . . . 2 9 5 10 5 . . . 5 . . . . . 19 12 13 35 2 17 . 17 . 14 83 . Message Errors 65 | . . 5 . . . . . . 2 1 4 3 . . . . . . . . . . 4 5 1 8 . 3 . 7 . 3 19 . Matter Fused 59 | . . . . . . . . . . . . . 1 . . . 2 . . . . . 8 2 7 10 2 6 . 4 . 3 14 . Heat Flow Errors 30 | . . . . . . . . . . . . 2 . . . . 3 . . . . . 5 . 1 3 . 1 . 1 . 2 12 . Energy Discharges 31 | . 1 2 . . . . . . . 2 . 2 1 . . . . . . . . . . 1 1 6 . 1 . 2 . 1 11 . Parts Rejected 4 | . . . . . . . . . . . . . . . . . . . . . . . . . . 1 . 1 . . . . 2 . Data Loss (minor) 38 | . . 1 . . . . . . . 6 1 3 3 . . . . . . . . . 2 1 3 5 . 1 . 1 . 4 7 . Data Loss (major) 5 | . . . . . . . . . . . . . . . . . . . . . . . . . . 1 . 3 . . . . 1 . Misfires 6 | . . . . . . . . . . . . . . . . . . . . . . . . . . 1 . . . 1 . . 4 . Alerts 1 | . . . . . . . . . . . . . . . . . . . . . . . . . . . . 1 . . . . . . Weapon Failures 18 | . . . . . . . . . . . . . . . . . . . . . . . . 3 . . . . . 1 . 1 13 . Overload Shots 21 | . . . . . . . . . . . . . . 12 5 1 . 3 . . . . . . . . . . . . . . . . Effects 2 | . . . . . . . . . . . . . . 1 . . . 1 . . . . . . . . . . . . . . . . Energy Bleed 2 | . . . . . . . . . . . . . . 1 . . . 1 . . . . . . . . . . . . . . . . Overflow Damage 575 | . 11 . 63 1 . 76 1 12 67 . 104 . 15 39 . . . 21 . 5 51 . . . . 77 . . . . . . 32 . Projectiles 236 | . . . 14 . . . . . 64 . 104 . 15 39 . . . . . . . . . . . . . . . . . . . . Explosions 295 | . 11 . 46 . . 76 1 12 . . . . . . . . . 21 . . 51 . . . . 77 . . . . . . . . Melee 44 | . . . 3 1 . . . . 3 . . . . . . . . . . 5 . . . . . . . . . . . . 32 . Knockbacks 9 | . . . . . . . . . 2 . 3 . . . . . . . . . . . . . . . . . . . . . 4 . Impact 5 | . . . . . . . . . 1 . . . . . . . . . . . . . . . . . . . . . . . 4 . Kinetic 4 | . . . . . . . . . 1 . 3 . . . . . . . . . . . . . . . . . . . . . . . Secondary . | . . . . . . . . . . . . . . . . . . . . . . . . . . . . . . . . . . . Self-Inflicted Damage 501 | . 76 . 6 . 32 . 32 43 . . . . . . . . . 103 . . 207 . . . . . . . . . . . 2 . Shots 13 | . 3 . 1 . 2 . 1 1 . . . . . . . . . 1 . . 4 . . . . . . . . . . . . . Rammed 56 | . 4 . 9 1 . . . 4 6 . . . . 3 . . . 3 3 2 . . . 2 . . . . 2 1 . 3 13 . Targets Rammed 81 | . 4 . 11 1 . . 4 10 8 . . . . 7 2 . . 3 4 2 . . . 5 . . . . 2 1 . 4 13 . Kicked 12 | . . . . . . . 4 5 . . . . . . . . . . . . . . . 3 . . . . . . . . . . Crushed 13 | . . . 2 . . . . 1 2 . . . . 4 2 . . . 1 . . . . . . . . . . . . 1 . . Highest Temperature 561 | . 183 30 441 . 162 259 239 201 380 5 40 185 18 415 160 184 167 561 64 . 233 120 361 491 34 86 . 60 . 329 348 152 446 . Average Temperature 89 | . 45 18 110 . 59 139 49 49 126 3 20 92 7 117 44 46 76 105 24 . 80 46 115 83 34 32 . 30 . 94 76 36 129 . Received Heat Transfer 5067 | . 120 6 483 . . . 216 549 549 45 36 . . 171 108 4 . 256 144 . 162 . 227 505 . 87 . 71 92 88 12 122 1014 . Effects 32 | . . . 4 . . . . . 2 . . . . . . . . 7 . . . . 1 5 . . . . . 4 1 . 8 . Shutdowns 9 | . . . 1 . . . . . . . . . . . . . . 1 . . . . 1 1 . . . . . . 1 . 4 . Energy Bleed 2 | . . . 2 . . . . . . . . . . . . . . . . . . . . . . . . . . . . . . . Interference 8 | . . . 1 . . . . . 1 . . . . . . . . . . . . . . . . . . . . 4 . . 2 . Matter Decay 2 | . . . . . . . . . . . . . . . . . . 1 . . . . . 1 . . . . . . . . . . Short Circuit 3 | . . . . . . . . . 1 . . . . . . . . 1 . . . . . . . . . . . . . . 1 . Damage (minor) 2 | . . . . . . . . . . . . . . . . . . . . . . . . 1 . . . . . . . . 1 . Damage (major) 6 | . . . . . . . . . . . . . . . . . . 4 . . . . . 2 . . . . . . . . . . Siege Activations 60 | . . . . . . . . . . . . . . . . . . 1 1 . 1 . . . . . . 2 4 4 9 11 27 . Total Turns 1136 | . . . . . . . . . . . . . . . . . . 19 19 . 18 . . . . . . 50 32 124 89 210 575 . Longest Duration 88 | . . . . . . . . . . . . . . . . . . 19 19 . 18 . . . . . . 38 23 37 20 88 86 . Robots Corrupted 2 | . 2 . . . . . . . . . . . . . . . . . . . . . . . . . . . . . . . . . Combat Hostiles 1 | . 1 . . . . . . . . . . . . . . . . . . . . . . . . . . . . . . . . . Parts Fried 8 | . 7 . . . . . . . 1 . . . . . . . . . . . . . . . . . . . . . . . . . Impact Corruptions 8 | . . . 1 1 . . . . 1 . . . . . . . . . . 1 . . . . . . . . . . . . 4 . Robots Melted 9 | . . . . . . . . . 3 1 . . . 2 . . . . . . . . . 2 . . . . 1 . . . . . Combat Hostiles 8 | . . . . . . . . . 2 1 . . . 2 . . . . . . . . . 2 . . . . 1 . . . . . Parts Melted 81 | . 1 . 5 . . . . 1 8 5 2 . 1 17 . . . . . . . . . 30 . 3 . 1 3 . . . 4 . Heat Transferred 25553 | . 150 50 3922 . . 118 . 74 3441 592 185 . 555 2496 . . . . 111 . 296 703 999 6812 111 1485 150 2050 1216 . . . . 37 Parts Sabotaged 8 | . . . . . . . . . . . . . . . . . . 3 . . . . 2 . . . . 3 . . . . . . Parts Stolen 7 | . . . . . . . . . . . 2 . . . . . . . . . 5 . . . . . . . . . . . . . Parts Stripped . | . . . . . . . . . . . . . . . . . . . . . . . . . . . . . . . . . . . Power Chain Reactions 3 | . 2 1 . . . . . . . . . . . . . . . . . . . . . . . . . . . . . . . . Missiles Intercepted . | . . . . . . . . . . . . . . . . . . . . . . . . . . . . . . . . . . . Alert | -11 -10 -10 -9 -9 -9 -8 -8 -8 -7 -7 -7 -7 -6 -6 -6 -6 -6 -6 -5 -5 -5 -5 -4 -4 -4 -4 -4 -3 -3 -3 -2 -2 -2 -1 ------- Run | Scr Mat Min Mat Min Exi Min Mat Sto Fac Low Low Zio Pro Fac Ext Cet Arc Hub Fac Upp Upp Zhi Pro Fac Upp Upp War Pro Res Tes Res Qua Sec Acc Peak Influence 1928 | . 201 58 644 375 . 116 291 440 692 . . . . 211 494 1116 541 1161 653 . . . . 507 . . . . 374 815 931 742 1928 1111 Initial 1111 | . . 34 12 250 . . . . 36 . . . . 21 50 264 366 . 563 . . . . 22 . . . . 155 157 209 523 315 1111 Average 274 | . 79 12 246 326 . 78 73 156 376 . . . . 91 195 679 114 319 575 . . . . 183 . . . . 262 346 517 450 938 1108 Maximum Alert Level 5 | . 1 . 2 1 . . 1 2 2 . . . . 1 2 4 2 4 2 . . . . 2 . . . . 1 3 3 3 5 4 Low Security (%) 52 | 100 90 100 49 . . 100 90 67 27 . . . . 98 67 . 73 37 . . . . . 53 . . . . 8 31 6 10 . . Level 1 20 | . 9 . 19 100 . . 9 31 2 . . . . 1 7 26 18 32 . . . . . 28 . . . . 91 45 26 20 8 . Level 2 20 | . . . 30 . . . . . 69 . . . . . 25 33 7 13 100 . . . . 17 . . . . . 18 38 64 33 . Level 3 4 | . . . . . . . . . . . . . . . . 37 . 15 . . . . . . . . . . . 4 29 4 23 7 Level 4 2 | . . . . . . . . . . . . . . . . 2 . 1 . . . . . . . . . . . . . . 27 92 Level 5 . | . . . . . . . . . . . . . . . . . . . . . . . . . . . . . . . . . 3 . High Security . | . . . . . . . . . . . . . . . . . . . . . . . . . . . . . . . . . 3 . Max Security . | . . . . . . . . . . . . . . . . . . . . . . . . . . . . . . . . . . . Squads Dispatched 96 | . 5 . 4 . . . 2 6 11 . . . . 4 2 . . 10 4 . . . 1 6 . 1 . 1 4 4 3 9 19 . Investigation 16 | . 2 . 2 . . . 1 3 . . . . . . 1 . . 2 . . . . . 1 . . . . 2 . . 2 . . Extermination 27 | . . . . . . . . . 5 . . . . 2 . . . 3 1 . . . . 2 . . . . . 2 . 5 7 . Reinforcement 32 | . 3 . 1 . . . 1 . 5 . . . . 2 1 . . 3 2 . . . . 3 . . . . 2 . 3 1 5 . Assault 17 | . . . 1 . . . . . 1 . . . . . . . . 1 1 . . . 1 . . 1 . 1 . 2 . 1 7 . Garrison 4 | . . . . . . . . 3 . . . . . . . . . 1 . . . . . . . . . . . . . . . . Intercept . | . . . . . . . . . . . . . . . . . . . . . . . . . . . . . . . . . . . Construction Impeded 5 | . . . 1 . . . . . 1 . . . . . . . . . . . . . . 2 . . . . . . . . 1 . Haulers Reinforced 6 | . . . . . . . . . 2 . . . . . . . . . 1 . . . . 1 . . . . . . 1 . 1 . Active Scanning Responses . | . . . . . . . . . . . . . . . . . . . . . . . . . . . . . . . . . . . Cargo Convoy Interrupts 1 | . . . . . . . . . 1 . . . . . . . . . . . . . . . . . . . . . . . . . Stealth | -11 -10 -10 -9 -9 -9 -8 -8 -8 -7 -7 -7 -7 -6 -6 -6 -6 -6 -6 -5 -5 -5 -5 -4 -4 -4 -4 -4 -3 -3 -3 -2 -2 -2 -1 --------- Run | Scr Mat Min Mat Min Exi Min Mat Sto Fac Low Low Zio Pro Fac Ext Cet Arc Hub Fac Upp Upp Zhi Pro Fac Upp Upp War Pro Res Tes Res Qua Sec Acc Distress Signals 42 | . 1 . 4 . . . 5 2 1 . . . . 4 3 2 1 . 1 . . . . 1 . . 2 . 2 . 8 1 4 . Communications Jammed . | . . . . . . . . . . . . . . . . . . . . . . . . . . . . . . . . . . . Distress Signals . | . . . . . . . . . . . . . . . . . . . . . . . . . . . . . . . . . . . Times Spotted 800 | . 27 3 49 1 30 5 27 34 37 9 7 . 6 28 31 20 33 37 16 1 9 . 17 37 2 24 32 22 28 34 35 39 115 5 Peak Tracking Total 11 | . 4 2 6 2 11 5 7 5 4 5 2 . 3 6 4 6 1 7 10 1 5 . 7 4 2 9 9 10 8 6 5 5 10 5 Tactical Retreats 61 | . 1 . 2 1 10 . 1 2 1 . 2 . . 1 3 . . 1 . . . . 2 1 . 1 . 3 1 2 6 7 13 . Traps | -11 -10 -10 -9 -9 -9 -8 -8 -8 -7 -7 -7 -7 -6 -6 -6 -6 -6 -6 -5 -5 -5 -5 -4 -4 -4 -4 -4 -3 -3 -3 -2 -2 -2 -1 ------- Run | Scr Mat Min Mat Min Exi Min Mat Sto Fac Low Low Zio Pro Fac Ext Cet Arc Hub Fac Upp Upp Zhi Pro Fac Upp Upp War Pro Res Tes Res Qua Sec Acc Traps Triggered 12 | . . . . . . . 1 2 . . . . . . 3 . . . . . . . . 1 . . 1 . . . . 3 1 . Indirectly . | . . . . . . . . . . . . . . . . . . . . . . . . . . . . . . . . . . . Trap Hack Attempts 21 | . . . 21 . . . . . . . . . . . . . . . . . . . . . . . . . . . . . . . Triggered . | . . . . . . . . . . . . . . . . . . . . . . . . . . . . . . . . . . . Disarmed 1 | . . . 1 . . . . . . . . . . . . . . . . . . . . . . . . . . . . . . . Reprogrammed 7 | . 1 . 2 . . . . . . . . . . . . . . . . . . . . 4 . . . . . . . . . . Reused 2 | . . . . . . . . . . . . . . . . . . . . . . . . 2 . . . . . . . . . . Traps Reconfigurated 11 | . . . . . . . 2 3 . . . . . . 6 . . . . . . . . . . . . . . . . . . . Traps Extracted . | . . . . . . . . . . . . . . . . . . . . . . . . . . . . . . . . . . . Installed 2 | . . . . . . . . . . . . . . . . . . . . . . . 1 1 . . . . . . . . . . Triggered 16 | . . . . . . . . . 1 . 2 . 1 . . . . . . 1 2 . . 2 . 2 5 . . . . . . . Exploded 3 | . . . . . 3 . . . . . . . . . . . . . . . . . . . . . . . . . . . . . Machines | -11 -10 -10 -9 -9 -9 -8 -8 -8 -7 -7 -7 -7 -6 -6 -6 -6 -6 -6 -5 -5 -5 -5 -4 -4 -4 -4 -4 -3 -3 -3 -2 -2 -2 -1 ---------- Run | Scr Mat Min Mat Min Exi Min Mat Sto Fac Low Low Zio Pro Fac Ext Cet Arc Hub Fac Upp Upp Zhi Pro Fac Upp Upp War Pro Res Tes Res Qua Sec Acc Machines Disabled 93 | . 1 . 7 1 15 1 . 3 3 . 1 . . . 5 3 3 16 2 . . . . . . . 1 . . 6 1 8 16 . Max in Single Turn 9 | . 1 . 2 1 2 1 . 1 1 . 1 . . . 1 1 1 9 1 . . . . . . . 1 . . 1 1 1 2 . Garrison Access 11 | . . . . . . . . 1 . . . . . 1 . . . 1 1 . . . . 1 . . . . 1 1 2 1 . 1 Network Hub 2 | . . . . . . . . . . . . . . . . . . 2 . . . . . . . . . . . . . . . . Machines Sabotaged 1 | . . . . . . . . . . . . . . . . . . 1 . . . . . . . . . . . . . . . . Garrisons Compromised 1 | . . . . . . . . . 1 . . . . . . . . . . . . . . . . . . . . . . . . . Overloaded Fab Kills . | . . . . . . . . . . . . . . . . . . . . . . . . . . . . . . . . . . . Fab Network Shutdowns 2 | . . . . . . . . . . . . . . . . . . . . . . . . . . . . . . 1 1 . . . Hacking | -11 -10 -10 -9 -9 -9 -8 -8 -8 -7 -7 -7 -7 -6 -6 -6 -6 -6 -6 -5 -5 -5 -5 -4 -4 -4 -4 -4 -3 -3 -3 -2 -2 -2 -1 --------- Run | Scr Mat Min Mat Min Exi Min Mat Sto Fac Low Low Zio Pro Fac Ext Cet Arc Hub Fac Upp Upp Zhi Pro Fac Upp Upp War Pro Res Tes Res Qua Sec Acc Machines Accessed 127 | . 7 1 17 . 2 . 3 14 4 . . 1 . 3 11 . . 5 1 1 . 4 . 3 . . 6 . 6 13 3 11 7 4 Terminals 73 | . 5 . 11 . . . 2 9 2 . . . . 1 11 . . 4 . . . . . 2 . . . . 3 7 . 8 6 2 Fabricators 4 | . . . . . . . . . . . . . . . . . . . . . . . . . . . . . 1 2 1 . . . Repair Stations 10 | . 1 . 2 . . . . 2 . . . . . 1 . . . . . . . . . . . . . . 1 2 . 1 . . Recycling Units 7 | . 1 . 2 . . . . 2 1 . . . . . . . . . . . . . . . . . . . . . . . . 1 Scanalyzers 6 | . . . 2 . . . 1 . . . . . . . . . . . . . . . . . . . . . . 1 . 1 1 . Garrison Access 12 | . . . . . . . . 1 1 . . . . 1 . . . 1 1 . . . . 1 . . . . 1 1 2 1 . 1 Total Hacks 457 | . 26 1 60 . 2 . 12 60 8 . . 5 . 5 26 . . 9 4 1 . 17 . 19 . . 22 . 26 61 9 49 27 8 Successful 261 | . 15 1 42 . 2 . 8 38 1 . . 5 . 3 6 . . 3 1 1 . 17 . 8 . . 22 . 11 33 6 23 13 2 Failed 194 | . 10 . 17 . . . 4 22 7 . . . . 2 20 . . 6 3 . . . . 11 . . . . 15 28 3 26 14 6 Catastrophic 27 | . . . 3 . . . 1 1 2 . . . . . 3 . . 1 1 . . . . 3 . . . . 2 3 1 2 2 2 Database Lockouts 2 | . 1 . 1 . . . . . . . . . . . . . . . . . . . . . . . . . . . . . . . Manual 196 | . 15 . 33 . 1 . 5 31 8 . . . . 2 5 1 . 8 . . . . . 11 . . . . 12 26 1 22 8 7 Terminals 284 | . 20 . 42 . . . 7 39 5 . . . . 2 26 . . 7 . . . . . 17 . . . . 13 37 . 42 24 3 Fabricators 17 | . . . . . . . . . . . . . . . . . . . . . . . . . . . . . 6 5 6 . . . Repair Stations 47 | . 2 . 6 . . . . 16 . . . . . 2 . . . . . . . . . . . . . . 6 11 . 4 . . Recycling Units 17 | . 4 . 4 . . . . 4 1 . . . . . . . . . . . . . . . . . . . . . . . . 4 Scanalyzers 24 | . . . 8 . . . 5 . . . . . . . . . . . . . . . . . . . . . . 7 . 1 3 . Garrison Access 20 | . . . . . . . . 1 2 . . . . 1 . . . 2 4 . . . . 2 . . . . 1 1 3 2 . 1 Terminal Hacks 125 | . 7 1 15 . 2 . 2 12 1 . . 5 . . 4 . . . . 1 . 17 . 5 . . 22 . 2 9 . 9 10 1 Record 17 | . . . . . 1 . . . . . . . . . . . . . . . . 5 . . . . 10 . . . . 1 . . Part Schematic 12 | . . . . . . . . 2 . . . 5 . . . . . . . . . 4 . . . . . . 1 . . . . . Robot Analysis 8 | . 1 . 2 . . . . 1 . . . . . . . . . . . . . 4 . . . . . . . . . . . . Prototype ID Bank 22 | . 1 . 3 . . . . 2 . . . . . . . . . . . . . 4 . 1 . . 11 . . . . . . . Open Door 10 | . . 1 . . . . . 1 . . . . . . 3 . . . . 1 . . . . . . 1 . . . . . 2 1 Branch Access Points 4 | . . . 1 . . . 1 . 1 . . . . . . . . . . . . . . . . . . . 1 . . . . . Emergency Access Points 1 | . . . 1 . . . . . . . . . . . . . . . . . . . . . . . . . . . . . . . Terminal Index 1 | . . . 1 . . . . . . . . . . . . . . . . . . . . . . . . . . . . . . . Scanalyzer Index 2 | . . . 1 . . . . . . . . . . . . . . . . . . . . . . . . . . . . . 1 . Alert Level 2 | . . . . . . . . 2 . . . . . . . . . . . . . . . . . . . . . . . . . . Unreport Threat 16 | . . . 2 . . . 1 3 . . . . . . 1 . . . . . . . . . . . . . . 4 . 4 1 . Locate Traps 7 | . 1 . 2 . . . . . . . . . . . . . . . . . . . . . . . . . . . . 1 3 . Reprogram Traps 3 | . 1 . . . . . . . . . . . . . . . . . . . . . . 2 . . . . . . . . . . Security Status 1 | . . . . . . . . . . . . . . . . . . . . . . . . 1 . . . . . . . . . . Patrol Status 2 | . . . . . . . . . . . . . . . . . . . . . . . . 1 . . . . . 1 . . . . Recall Investigation 3 | . 1 . . . . . . 1 . . . . . . . . . . . . . . . . . . . . . . . 1 . . Recall Reinforcements 2 | . . . . . . . . . . . . . . . . . . . . . . . . . . . . . . . . . 2 . Recall Assault 1 | . . . . . . . . . . . . . . . . . . . . . . . . . . . . . . . . . 1 . Hauler Manifests 2 | . 1 . 1 . . . . . . . . . . . . . . . . . . . . . . . . . . . . . . . Zone Layout 6 | . 1 . 1 . . . . . . . . . . . . . . . . . . . . . . . . . . 2 . 2 . . EX-Prototype ID Bank 1 | . . . . . 1 . . . . . . . . . . . . . . . . . . . . . . . . . . . . . Protovariant Controls 2 | . . . . . . . . . . . . . . . . . . . . . . . . . . . . . . 2 . . . . Fabricator Hacks 10 | . . . . . . . . . . . . . . . . . . . . . . . . . . . . . 4 3 3 . . . Load Schematic 4 | . . . . . . . . . . . . . . . . . . . . . . . . . . . . . 2 1 1 . . . Build 6 | . . . . . . . . . . . . . . . . . . . . . . . . . . . . . 2 2 2 . . . Repair Station Hacks 32 | . 2 . 6 . . . . 13 . . . . . 1 . . . . . . . . . . . . . . 2 6 . 2 . . Scan Component 17 | . 1 . 3 . . . . 7 . . . . . 1 . . . . . . . . . . . . . . 1 3 . 1 . . Repair 15 | . 1 . 3 . . . . 6 . . . . . . . . . . . . . . . . . . . . 1 3 . 1 . . Recycling Unit Hacks 2 | . . . 1 . . . . 1 . . . . . . . . . . . . . . . . . . . . . . . . . . Retrieve Components 2 | . . . 1 . . . . 1 . . . . . . . . . . . . . . . . . . . . . . . . . . Scanalyzer 19 | . . . 8 . . . 4 . . . . . . . . . . . . . . . . . . . . . . 5 . 1 1 . Insert Component 12 | . . . 4 . . . 2 . . . . . . . . . . . . . . . . . . . . . . 4 . 1 1 . Analyze 7 | . . . 4 . . . 2 . . . . . . . . . . . . . . . . . . . . . . 1 . . . . Garrison Access Hacks 9 | . . . . . . . . . . . . . . 1 . . . . 1 . . . . 1 . . . . 1 1 2 1 . 1 Seal Access 9 | . . . . . . . . . . . . . . 1 . . . . 1 . . . . 1 . . . . 1 1 2 1 . 1 Unauthorized Hacks 64 | . 6 . 12 . . . 2 12 . . . . . 1 2 . . 3 . . . . . 2 . . . . 2 9 1 10 2 . Terminals 54 | . 3 . 11 . . . 2 9 . . . . . 1 2 . . 2 . . . . . 2 . . . . 2 8 . 10 2 . Track 15 | . . . 3 . . . . 2 . . . . . . . . . . . . . . . 1 . . . . . 5 . 4 . . Assimilate 4 | . . . 3 . . . . 1 . . . . . . . . . . . . . . . . . . . . . . . . . . Botnet 25 | . 2 . 2 . . . 2 5 . . . . . 1 2 . . 1 . . . . . 1 . . . . 2 2 . 3 2 . Disrupt 6 | . . . 2 . . . . . . . . . . . . . . . . . . . . . . . . . . 1 . 3 . . Operators 3 | . 1 . 1 . . . . 1 . . . . . . . . . . . . . . . . . . . . . . . . . . Sabotage 1 | . . . . . . . . . . . . . . . . . . 1 . . . . . . . . . . . . . . . . Fabricators 2 | . . . . . . . . . . . . . . . . . . . . . . . . . . . . . . 1 1 . . . Prioritize 1 | . . . . . . . . . . . . . . . . . . . . . . . . . . . . . . . 1 . . . Haulers 1 | . . . . . . . . . . . . . . . . . . . . . . . . . . . . . . 1 . . . . Repair Stations . | . . . . . . . . . . . . . . . . . . . . . . . . . . . . . . . . . . . Recycling Units 6 | . 3 . 1 . . . . 2 . . . . . . . . . . . . . . . . . . . . . . . . . . Reject 2 | . 1 . . . . . . 1 . . . . . . . . . . . . . . . . . . . . . . . . . . Mask 2 | . 1 . . . . . . 1 . . . . . . . . . . . . . . . . . . . . . . . . . . Tunnel 2 | . 1 . 1 . . . . . . . . . . . . . . . . . . . . . . . . . . . . . . . Scanalyzers . | . . . . . . . . . . . . . . . . . . . . . . . . . . . . . . . . . . . Garrison Access 2 | . . . . . . . . 1 . . . . . . . . . 1 . . . . . . . . . . . . . . . . Jam 2 | . . . . . . . . 1 . . . . . . . . . 1 . . . . . . . . . . . . . . . . Data Cores Recovered 3 | . . . 1 . . . . . . . . . . . . . . 1 . . . . . . . . . . . . . 1 . . Used . | . . . . . . . . . . . . . . . . . . . . . . . . . . . . . . . . . . . Hacking Detections 94 | . 6 . 17 . . . 3 12 4 . . . . 2 10 . . 4 . . . . . 3 . . . . 5 11 1 9 4 3 Full Trace Events 7 | . 1 . 1 . . . . 1 . . . . . . 1 . . . . . . . . . . . . . 1 . . 2 . . Feedback Events . | . . . . . . . . . . . . . . . . . . . . . . . . . . . . . . . . . . . Feedback Blocked . | . . . . . . . . . . . . . . . . . . . . . . . . . . . . . . . . . . . Robot Schematics Acquired . | . . . . . . . . . . . . . . . . . . . . . . . . . . . . . . . . . . . Robots Built . | . . . . . . . . . . . . . . . . . . . . . . . . . . . . . . . . . . . Matter . | . . . . . . . . . . . . . . . . . . . . . . . . . . . . . . . . . . . Time . | . . . . . . . . . . . . . . . . . . . . . . . . . . . . . . . . . . . Total Robot Build Rating . | . . . . . . . . . . . . . . . . . . . . . . . . . . . . . . . . . . . Part Schematics Acquired 19 | . . . 4 . . . 2 2 . . . 5 . . . . . . . . . 4 . . . . . . 1 1 . . . . Parts Built 9 | . . . . . . . . . . . . . . . . . . . . . . . . . . . . . 1 4 4 . . . Matter 1170 | . . . . . . . . . . . . . . . . . . . . . . . . . . . . . 102 556 512 . . . Time 205 | . . . . . . . . . . . . . . . . . . . . . . . . . . . . . 17 92 96 . . . Total Part Build Rating 69 | . . . . . . . . . . . . . . . . . . . . . . . . . . . . . 1 36 32 . . . Parts Repaired 15 | . 1 . 3 . . . . 6 . . . . . . . . . . . . . . . . . . . . 1 3 . 1 . . Time 775 | . 26 . 130 . . . . 455 . . . . . . . . . . . . . . . . . . . . 36 94 . 34 . . Parts Recycled . | . . . . . . . . . . . . . . . . . . . . . . . . . . . . . . . . . . . Recycled Matter . | . . . . . . . . . . . . . . . . . . . . . . . . . . . . . . . . . . . Retrieved Matter . | . . . . . . . . . . . . . . . . . . . . . . . . . . . . . . . . . . . Retrieved Components 10 | . . . 10 . . . . . . . . . . . . . . . . . . . . . . . . . . . . . . . Parts Scanalyzed 7 | . . . 4 . . . 2 . . . . . . . . . . . . . . . . . . . . . . 1 . . . . Part Schematics Acquired 7 | . . . 4 . . . 2 . . . . . . . . . . . . . . . . . . . . . . 1 . . . . Parts Damaged . | . . . . . . . . . . . . . . . . . . . . . . . . . . . . . . . . . . . Bothacking | -11 -10 -10 -9 -9 -9 -8 -8 -8 -7 -7 -7 -7 -6 -6 -6 -6 -6 -6 -5 -5 -5 -5 -4 -4 -4 -4 -4 -3 -3 -3 -2 -2 -2 -1 ------------ Run | Scr Mat Min Mat Min Exi Min Mat Sto Fac Low Low Zio Pro Fac Ext Cet Arc Hub Fac Upp Upp Zhi Pro Fac Upp Upp War Pro Res Tes Res Qua Sec Acc Used RIF Installer . | . . . . . . . . . . . . . . . . . . . . . . . . . . . . . . . . . . . Robots Hacked 1 | . . . 1 . . . . . . . . . . . . . . . . . . . . . . . . . . . . . . . Non-combat 1 | . . . 1 . . . . . . . . . . . . . . . . . . . . . . . . . . . . . . . Combat . | . . . . . . . . . . . . . . . . . . . . . . . . . . . . . . . . . . . Robot Hacks Applied 1 | . . . 1 . . . . . . . . . . . . . . . . . . . . . . . . . . . . . . . parse_system 1 | . . . 1 . . . . . . . . . . . . . . . . . . . . . . . . . . . . . . . Relay Couplers Released 6 | . . . . . . . . . . . . . . . . . . . . . . . . . . . . . 6 . . . . . Programmers 6 | . . . . . . . . . . . . . . . . . . . . . . . . . . . . . 6 . . . . . Robots Rewired 31 | . . . . . . . . . . . . . . . 21 . . . . . . . 2 . . 2 4 2 . . . . . . Allies Hacked . | . . . . . . . . . . . . . . . . . . . . . . . . . . . . . . . . . . . Hacks Repelled . | . . . . . . . . . . . . . . . . . . . . . . . . . . . . . . . . . . . Allies | -11 -10 -10 -9 -9 -9 -8 -8 -8 -7 -7 -7 -7 -6 -6 -6 -6 -6 -6 -5 -5 -5 -5 -4 -4 -4 -4 -4 -3 -3 -3 -2 -2 -2 -1 -------- Run | Scr Mat Min Mat Min Exi Min Mat Sto Fac Low Low Zio Pro Fac Ext Cet Arc Hub Fac Upp Upp Zhi Pro Fac Upp Upp War Pro Res Tes Res Qua Sec Acc Total Allies 55 | . . 3 1 . . . . 1 . . . 3 . . 32 5 . . . . . . 2 . . 2 4 2 . . . . . . Largest Group 16 | . . 3 1 . . . . 1 . . . 3 3 2 16 15 7 4 . . . . 2 . . 2 4 2 2 . . . . . Highest-Rated Group 799 | . . 40 10 . . . . 10 . . . 62 62 48 610 799 511 307 . . . . 95 . . 96 245 121 95 . . . . . Highest-Rated Ally 156 | . . 16 10 . . . . 10 . . . 28 28 28 156 156 140 95 . . . . 48 . . 49 68 65 48 . . . . . Total Orders 49 | . . . 2 . . . . . . . . . . 11 2 . 8 2 7 . . . 5 1 . . 5 1 . . . . . 5 STAY 15 | . . . 1 . . . . . . . . . . 1 1 . 6 . . . . . 2 . . . 3 1 . . . . . . ROAM 1 | . . . . . . . . . . . . . . . . . . . . . . . 1 . . . . . . . . . . . FOLLOW 8 | . . . 1 . . . . . . . . . . . 1 . 2 . . . . . 2 . . . 2 . . . . . . . EXPLORE 14 | . . . . . . . . . . . . . . 5 . . . 1 3 . . . . 1 . . . . . . . . . 4 RETURN 11 | . . . . . . . . . . . . . . 5 . . . 1 4 . . . . . . . . . . . . . . 1 Ally Attacks 639 | . . 18 . . . 23 . . . . . . 8 2 270 128 32 64 . . . . 1 . . 11 31 17 34 . . . . . Total Damage 16962 | . . 237 . . . 834 . . . . . . 103 43 4785 3129 1014 2296 . . . . 45 . . 325 2255 729 1167 . . . . . Kills 101 | . . 3 . . . 1 . . . . . . . . 38 23 3 16 . . . . . . . 1 10 2 4 . . . . . Allies Corrupted . | . . . . . . . . . . . . . . . . . . . . . . . . . . . . . . . . . . . Allies Melted 2 | . . . . . . . . . . . . . . . . . . . . . . . . . . . 1 . . . 1 . . . Turrets Deployed 1 | . . . . . . 1 . . . . . . . . . . . . . . . . . . . . . . . . . . . . Intel | -11 -10 -10 -9 -9 -9 -8 -8 -8 -7 -7 -7 -7 -6 -6 -6 -6 -6 -6 -5 -5 -5 -5 -4 -4 -4 -4 -4 -3 -3 -3 -2 -2 -2 -1 ------- Run | Scr Mat Min Mat Min Exi Min Mat Sto Fac Low Low Zio Pro Fac Ext Cet Arc Hub Fac Upp Upp Zhi Pro Fac Upp Upp War Pro Res Tes Res Qua Sec Acc Robot Analysis Total 8 | . 1 . 2 . . . . 1 . . . . . . . . . . . . . 4 . . . . . . . . . . . . Derelict Logs Recovered 16 | . . . . . . . . . . 1 3 2 1 . . . . . . 2 2 . 1 . 3 1 . . . . . . . . Drone Launches 17 | . . . . . . . . . . . . . . 6 . . . 2 4 . . . . 1 . . . . . . . . . 4 Drone Recoveries 13 | . . . . . . . . . . . . . . 6 . . . 2 3 . . . . . . . . . . . . . . 2 Exploration | -11 -10 -10 -9 -9 -9 -8 -8 -8 -7 -7 -7 -7 -6 -6 -6 -6 -6 -6 -5 -5 -5 -5 -4 -4 -4 -4 -4 -3 -3 -3 -2 -2 -2 -1 ------------- Run | Scr Mat Min Mat Min Exi Min Mat Sto Fac Low Low Zio Pro Fac Ext Cet Arc Hub Fac Upp Upp Zhi Pro Fac Upp Upp War Pro Res Tes Res Qua Sec Acc Turns Passed 62839 | 3 2730 1520 3275 400 7470 541 2465 3559 2495 1049 1436 5337 537 1367 2983 564 4606 1239 528 610 1053 582 1679 1348 598 932 1498 760 1423 1714 1521 2394 2379 244 Spaces Moved 21107 | 3 664 410 1015 149 2388 140 498 785 598 271 357 2007 140 283 706 141 1321 419 218 362 493 184 506 378 469 397 816 324 728 783 744 1186 941 283 Core 929 | . . . . . . . . . . . . 652 . . . . 108 . . . . . . . . . . . . . . . 17 152 Treads 18272 | . 653 410 1015 149 2218 . . 473 598 271 357 1355 140 283 706 141 1213 419 218 362 493 184 506 298 . 305 816 324 728 783 744 1186 924 . Legs 1775 | 3 11 . . . 170 140 498 312 . . . . . . . . . . . . . . . 80 469 92 . . . . . . . . Wheels 131 | . . . . . . . . . . . . . . . . . . . . . . . . . . . . . . . . . . 131 Hover . | . . . . . . . . . . . . . . . . . . . . . . . . . . . . . . . . . . . Flight . | . . . . . . . . . . . . . . . . . . . . . . . . . . . . . . . . . . . Fastest Speed 50 | 120 120 360 260 260 160 286 285 280 362 362 362 50 362 262 360 360 50 160 160 160 160 270 270 120 120 120 160 160 158 158 158 146 50 50 Average Speed 247 | 120 343 360 260 260 292 286 288 333 362 363 362 258 362 352 361 360 311 248 160 160 172 270 270 242 122 186 161 160 159 158 164 150 146 79 Slowest Speed 520 | 120 360 360 360 260 460 286 290 520 462 462 362 463 362 362 362 360 360 260 160 160 270 270 270 270 200 260 260 160 162 158 167 158 270 115 Overloaded Moves . | . . . . . . . . . . . . . . . . . . . . . . . . . . . . . . . . . . . Propulsion Burnouts . | . . . . . . . . . . . . . . . . . . . . . . . . . . . . . . . . . . . Robots Hopped 2 | . . . . . . 2 . . . . . . . . . . . . . . . . . . . . . . . . . . . . Cave-ins Triggered . | . . . . . . . . . . . . . . . . . . . . . . . . . . . . . . . . . . . Teleports 1 | . . . . . . . . . . . . . . . . . . . . . . . . . . . . . . . . 1 . . Exploration Rate (%) 53 | 2 79 85 86 25 92 32 44 70 21 46 50 85 37 12 86 67 96 40 12 54 61 60 67 11 73 58 88 44 25 84 32 84 64 11 Regions Visited 34 Branch Regions 24 Pre-discovered Areas 12 | . 1 . 1 . 1 . . . . . 2 . . . . . . . . . . 3 . . 3 . 1 . . . . . . . Known Exits Taken 22 | . . . 1 . . . 1 . 1 . . 1 1 1 1 1 1 1 1 1 1 1 1 1 1 . . . 1 1 1 1 1 . Unknown Exits Taken 12 | 1 1 1 . 1 1 1 . 1 . 1 1 . . . . . . . . . . . . . . 1 1 1 . . . . . . Scrap Searched 29 | . . 2 . 1 . . . . . 2 2 4 4 . . . . . . 2 4 . 3 . 2 1 . 2 . . . . . . Spaces Dug 88 | . 24 . . . 3 . . 3 . . . . . 4 . . . 4 6 . 12 . . 7 . . 6 . 1 9 . 8 1 . Terrain Destroyed 1003 | . 41 3 42 27 51 29 31 51 51 22 1 . . 11 . . 6 206 12 2 74 . 6 19 12 61 10 40 15 40 6 46 88 . Melee 2 | . . . . . 1 . . . . . . . . . . . . . . . . . . . . . . . . 1 . . . . Projectile 367 | . . . . . 17 6 . 6 12 10 1 . . 11 . . 6 5 12 2 24 . 6 19 1 38 9 40 15 38 . 40 49 . AOE 613 | . 41 3 42 27 33 23 31 45 39 12 . . . . . . . 201 . . 50 . . . 11 23 . . . . . . 32 . Terrain Rammed . | . . . . . . . . . . . . . . . . . . . . . . . . . . . . . . . . . . . Walls Destroyed . | . . . . . . . . . . . . . . . . . . . . . . . . . . . . . . . . . . . Machines Disabled . | . . . . . . . . . . . . . . . . . . . . . . . . . . . . . . . . . . . Actions | -11 -10 -10 -9 -9 -9 -8 -8 -8 -7 -7 -7 -7 -6 -6 -6 -6 -6 -6 -5 -5 -5 -5 -4 -4 -4 -4 -4 -3 -3 -3 -2 -2 -2 -1 --------- Run | Scr Mat Min Mat Min Exi Min Mat Sto Fac Low Low Zio Pro Fac Ext Cet Arc Hub Fac Upp Upp Zhi Pro Fac Upp Upp War Pro Res Tes Res Qua Sec Acc Total 28999 | 2 1026 455 1464 157 2748 248 1406 1521 789 315 499 2183 155 520 1110 188 1815 542 332 380 642 245 770 637 482 497 959 474 928 1135 944 1567 1569 295 Wait 3853 | . 271 32 177 3 73 73 780 561 56 3 100 36 3 102 75 1 273 31 39 . 91 22 128 68 2 6 13 20 83 215 119 172 224 1 Move 21069 | 2 663 409 1014 148 2387 135 497 784 597 270 356 2006 139 282 705 140 1320 418 218 361 492 183 505 377 468 396 815 323 727 782 743 1185 940 282 Hop 2 | . . . . . . 2 . . . . . . . . . . . . . . . . . . . . . . . . . . . . Pick Up 486 | . 23 7 42 . 53 3 17 25 18 6 12 47 1 10 7 9 72 3 9 2 6 5 4 23 2 10 10 1 13 13 4 10 19 . Fast Attach 266 | . 4 . 4 . 21 . 7 13 8 6 2 22 . 6 3 2 17 2 . 2 . 3 5 9 . 8 15 10 21 14 9 20 24 9 Attach 160 | . 6 . 5 . 10 3 7 5 13 6 7 1 . 12 2 3 5 8 6 . 6 1 2 13 . 7 5 1 3 2 2 5 14 . Detach 40 | . 1 . . . 7 . . 1 3 1 3 1 . 2 . 1 4 1 1 . . . . 1 . . 3 . 2 1 1 . 6 . Swap 308 | . 6 2 41 2 2 6 14 11 4 1 1 . 2 10 19 8 1 13 13 4 7 6 8 16 5 8 7 5 10 10 4 31 31 . Drop 643 | . 8 4 52 . 63 3 21 23 22 11 11 70 2 13 11 12 85 9 6 4 4 3 5 17 2 11 28 4 35 28 12 30 33 1 Fire 1559 | . 40 1 96 3 99 23 59 85 60 11 7 . 8 76 22 12 38 54 37 5 36 22 31 107 3 40 28 39 32 63 50 105 265 2 Melee 44 | . . . 1 . 33 . . 2 . . . . . . . . . . . . . . . . . . 1 . . 2 . 5 . . Ram 1 | . . . . . . . . . . . . . . . . . . . . . . . . . . . . . . . . . 1 . Kick 12 | . . . . . . . 4 5 . . . . . . . . . . . . . . . 3 . . . . . . . . . . Crush 67 | . 4 . 11 1 . . . 5 8 . . . . 7 2 . . 3 3 2 . . . 2 . . . . 2 1 . 4 12 . Escape Stasis 10 | . . . . . . . . . . . . . . . 6 . . . . . . . . . . . . . . 4 . . . . Rewire 456 | . . . . . . . . 1 . . . . . . 258 . . . . . . . 81 . . 11 34 71 . . . . . . Trap 23 | . . . 21 . . . . . . . . . . . . . . . . . . . 1 1 . . . . . . . . . . Miscellaneous . | . . . . . . . . . . . . . . . . . . . . . . . . . . . . . . . . . . . Route ------- -11/Scrapyard -10/Materials (discovered 3 exits: *Mat x2 / *Min) -10/Mines (discovered 2 exits: *Mat x2) -9/Materials (discovered 4 exits: *Mat x3 / *Min) -9/Mines (discovered 2 exits: *Exi / *Zio) -9/Exiles (discovered 2 exits: [*Min x2]) -8/Mines -8/Materials (discovered 3 exits: *Fac / *Sto x2) -8/Storage -7/Factory (discovered 4 exits: *Fac x2 / *Low x2) -7/Lower Caves -7/Lower Caves -7/Zion -6/Proximity Caves -6/Factory (discovered 3 exits: Fac / *Ext x2) -6/Extension (discovered 2 exits: *Fac / *Cet) -6/Cetus (discovered 2 exits: *Fac / *Arc) -6/Archives (discovered 3 exits: *Fac / *Hub x2) -6/Hub_04(d) -5/Factory (discovered 2 exits: *Upp x2) -5/Upper Caves -5/Upper Caves (discovered 2 exits: *Fac / *Zhi) -5/Zhirov -4/Proximity Caves -4/Factory -4/Upper Caves -4/Upper Caves -4/Warlord -3/Proximity Caves -3/Research (discovered 4 exits: *Res / *Arm / *Tes x2) -3/Testing -2/Research (discovered 3 exits: *Acc x2 / *Qua) -2/Quarantine (discovered 2 exits: *Acc / *Sec) -2/Section 7 -1/Access To Epsilon Eridani History --------- Turn | Location | Event 1 | -11/Scrapyard | Discovered new exit (range 3) 4 | -11/Scrapyard | Entered Materials 303 | -10/Materials | Build established: Mutant 1159 | -10/Materials | Repaired Lgt. Treads 1410 | -10/Materials | Discovered new exit (range 13) 1702 | -10/Materials | Discovered new exit (range 8) 1729 | -10/Materials | Central database locked down 2421 | -10/Materials | Discovered new exit (range 15) 2734 | -10/Materials | Entered Mines 3093 | -10/Mines | Assisted by bots powering up and referring to "LRC-V3" 3330 | -10/Mines | Received a Rocket Launcher from a helpful Derelict 3510 | -10/Mines | Discovered new exit (range 11) 3552 | -10/Mines | Met a Derelict who couldn't figure out how to use a Trap Extractor 4051 | -10/Mines | Discovered new exit (range 10) 4091 | -10/Mines | Found a damaged Exp. Sensor Array with a note attached 4099 | -10/Mines | Found Prototype Device 4254 | -10/Mines | Entered Materials 4254 | -9/Materials | Evolved 2 slots: Propulsion x1, Utility x1 4854 | -9/Materials | Repaired Corrupted Hacking Suite? 4856 | -9/Materials | Discovered new exit (range 15) 4996 | -9/Materials | Build established: Scavenger-Mutant 5175 | -9/Materials | Identified exit to Mines 5270 | -9/Materials | Central database locked down 5400 | -9/Materials | Repaired Lgt. Treads 5453 | -9/Materials | Repaired Adv. Beam Cannon 6454 | -9/Materials | Discovered new exit (range 16) 7286 | -9/Materials | Discovered new exit (range 16) 7454 | -9/Materials | First assault squad dispatched 7529 | -9/Materials | Entered Mines 7653 | -9/Mines | Build established: Mutant 7831 | -9/Mines | A Derelict revealed a hidden shortcut to a safe place 7918 | -9/Mines | Deemed a non-threat by the Exiles lab entrance 7918 | -9/Mines | Discovered new exit (range 5) 7929 | -9/Mines | Entered Exiles 7994 | -9/Exiles | Met 8R-AWN 8039 | -9/Exiles | Met EX-HEX 8191 | -9/Exiles | Met EX-DEC 8240 | -9/Exiles | Learned location of Zion (-7) 8339 | -9/Exiles | Discovered new exit (range 10) 8500 | -9/Exiles | Met EX-BIN 9085 | -9/Exiles | Build established: Hauler-Mutant 9129 | -9/Exiles | Aligned with FarCom system 9134 | -9/Exiles | Given EX-Vault access code 9239 | -9/Exiles | Opened EX-Vault 9272 | -9/Exiles | Found Superbattery 9288 | -9/Exiles | Found AWS/Autocannon 9303 | -9/Exiles | Found Trap Reconfigurator 9398 | -9/Exiles | Warned to stay clear of 0b10 Research branches 10163 | -9/Exiles | Visited The Gauntlet 12043 | -9/Exiles | Build established: Mutant 12240 | -9/Exiles | Discovered new exit (range 15) 12642 | -9/Exiles | Attacked by the Exiles 12770 | -9/Exiles | Core integrity fell below 50% 12798 | -9/Exiles | Core integrity fell below 20% 12813 | -9/Exiles | Destroyed 8R-AWN 12825 | -9/Exiles | Found Prototype Processor 12833 | -9/Exiles | Found Prototype Ballistic Gun 12833 | -9/Exiles | Identified 8R-AWN's Boregun 12865 | -9/Exiles | Identified Exp. Sensor Array 13170 | -9/Exiles | Destroyed EX-HEX 13223 | -9/Exiles | Destroyed EX-BIN 13442 | -9/Exiles | Build established: Scavenger-Mutant 13595 | -9/Exiles | Destroyed EX-DEC 14128 | -9/Exiles | Build established: Hauler-Mutant 14980 | -9/Exiles | Found Deploy-a-Sentry 15399 | -9/Exiles | Stole four prototypes: Superbattery, Trap Reconfigurator, AWS/Autocannon, Deploy-a-Sentry 15399 | -9/Exiles | Entered Mines 15407 | -8/Mines | DAS Turret deployed 15501 | -8/Mines | CL-ANK came to Exiles' defense 15555 | -8/Mines | Allies destroyed CL-ANK 15897 | -8/Mines | Discovered new exit (range 15) 15940 | -8/Mines | Entered Materials 15940 | -8/Materials | Evolved 2 slots: Propulsion x1, Weapon x1 16446 | -8/Materials | Build established: Hauler-Tank 17366 | -8/Materials | Identified exit to Storage 17488 | -8/Materials | Discovered new exit (range 12) 18405 | -8/Materials | Entered Storage 18615 | -8/Storage | Destroyed 8 combat bots 19030 | -8/Storage | Repaired Adv. Myomer Leg 19164 | -8/Storage | Repaired Adv. Myomer Leg 19237 | -8/Storage | Repaired Imp. Assault Rifle 19800 | -8/Storage | Discovered new exit (range 10) 20031 | -8/Storage | Repaired Deuterium Engine 20065 | -8/Storage | Repaired Autogun 20202 | -8/Storage | Repaired Broken Exp. Sensor Array 21964 | -8/Storage | Entered Factory 21964 | -7/Factory | Evolved 2 slots: Utility x2 22079 | -7/Factory | Build established: Hauler-Gunner 22501 | -7/Factory | Build established: Hauler-Tank 22654 | -7/Factory | Cargo convoy interrupted 22887 | -7/Factory | Destroyed 7 combat bots 23367 | -7/Factory | Discovered new exit (range 9) 23677 | -7/Factory | Discovered new exit (range 15) 23990 | -7/Factory | First assault squad dispatched 24084 | -7/Factory | Identified exit to Lower Caves 24459 | -7/Factory | Entered Lower Caves 24992 | -7/Lower Caves | Found Imp. Powered Armor 25238 | -7/Lower Caves | Build established: Hauler-Gunner 25438 | -7/Lower Caves | Discovered new exit (range 15) 25508 | -7/Lower Caves | Entered another Lower Caves area 25508 | -7/Lower Caves | Spotted 97-OEH(f) 25509 | -7/Lower Caves | Encountered a Master Thief 25510 | -7/Lower Caves | Spotted Y1-XFT(f) 25511 | -7/Lower Caves | Encountered a Master Thief 25514 | -7/Lower Caves | AWS/Autocannon stolen by Master Thief 25519 | -7/Lower Caves | Rnf. Fission Core stolen by Master Thief 25962 | -7/Lower Caves | Encountered a Warlord checkpoint 26828 | -7/Lower Caves | Discovered new exit (range 9) 26869 | -7/Lower Caves | Attacked by a delusional Derelict stockpiling parts 26944 | -7/Lower Caves | Entered Zion 27078 | -7/Zion | System corruption cleaned by Quarantine Array 27259 | -7/Zion | Acquired unknown access codes intercepted by a Zionite 27325 | -7/Zion | Discovered new exit (range 12) 27469 | -7/Zion | Learned location of 1 exit from Factory 28280 | -7/Zion | Gained Derelict followers 29896 | -7/Zion | Learned 8 Factory zone layouts 30784 | -7/Zion | Found Prototype Hackware 30785 | -7/Zion | Found Prototype Processor 30787 | -7/Zion | Found Prototype Processor 30789 | -7/Zion | Found Prototype Processor 30836 | -7/Zion | Found Prototype Processor 30874 | -7/Zion | Build established: Mutant 30932 | -7/Zion | Found Prototype Processor 31024 | -7/Zion | Found Prototype Launcher 31024 | -7/Zion | Identified Gui. Missile Launcher 31074 | -7/Zion | Identified Spectral Analyzer 31079 | -7/Zion | Identified Exp. Signal Interpreter 31085 | -7/Zion | Identified Exp. Target Analyzer 31100 | -7/Zion | Identified Exp. Terrain Scan Processor 31128 | -7/Zion | Identified Exp. Targeting Computer 31365 | -7/Zion | Build established: Hauler-Mutant 31952 | -7/Zion | Build established: Hauler-Gunner 32272 | -7/Zion | Identified exit to Proximity Caves 32281 | -7/Zion | Entered Proximity Caves 32281 | -6/Proximity Caves | Accompanied by 3 allies 32561 | -6/Proximity Caves | Learned Factory emergency access door positions 32599 | -6/Proximity Caves | Build established: Hauler-Skirmisher 32792 | -6/Proximity Caves | Discovered new exit (range 7) 32810 | -6/Proximity Caves | Identified exit to Factory 32818 | -6/Proximity Caves | Entered Factory 32818 | -6/Factory | Accompanied by 2 allies 32818 | -6/Factory | Evolved 2 slots: Propulsion x1, Utility x1 32819 | -6/Factory | Identified exit to Extension 32821 | -6/Factory | Identified exit to Factory 33280 | -6/Factory | Spotted B-75 Beast 33302 | -6/Factory | Destroyed B-75 Beast 33440 | -6/Factory | Build established: Hauler-Gunner 34185 | -6/Factory | Entered Extension 34470 | -6/Extension | Rescued a captive Derelict 34744 | -6/Extension | Rescued a captive Derelict 34955 | -6/Extension | Rescued a captive Derelict 34967 | -6/Extension | Rescued a captive Derelict 35083 | -6/Extension | Build established: Commander-Gunner 35676 | -6/Extension | Spotted B-75 Beast 35688 | -6/Extension | Allies destroyed B-75 Beast 35726 | -6/Extension | Destroyed B-75 Beast 35959 | -6/Extension | Rescued A7 35981 | -6/Extension | Build established: Hauler-Gunner 36193 | -6/Extension | Rescued a captive Derelict 36202 | -6/Extension | Rescued a captive Derelict 36710 | -6/Extension | Rescued a captive Derelict 36711 | -6/Extension | Rescued a captive Derelict 37037 | -6/Extension | Rescued a captive Derelict 37048 | -6/Extension | Rescued a captive Derelict 37120 | -6/Extension | Discovered exit to Factory (range 10) 37123 | -6/Extension | Discovered new exit (range 6) 37164 | -6/Extension | Identified exit to Cetus 37168 | -6/Extension | Entered Cetus 37168 | -6/Cetus | Accompanied by 15 allies (A7) 37173 | -6/Cetus | Acquired a Cetus Manufacturing Module code from A7 37185 | -6/Cetus | Build established: Commander-Gunner 37208 | -6/Cetus | Spotted Cetus Guard 37208 | -6/Cetus | Spotted Cetus Guard 37211 | -6/Cetus | Spotted Cetus Guard 37212 | -6/Cetus | Spotted Cetus Guard 37218 | -6/Cetus | Allies destroyed Cetus Guard 37224 | -6/Cetus | Allies destroyed Cetus Guard 37226 | -6/Cetus | Allies destroyed Cetus Guard 37230 | -6/Cetus | Allies destroyed Cetus Guard 37408 | -6/Cetus | Started Cetus Manufacturing Module 37433 | -6/Cetus | Manufactured an Enhanced Grunt 37458 | -6/Cetus | Manufactured an Enhanced Grunt 37467 | -6/Cetus | Discovered new exit (range 16) 37483 | -6/Cetus | Manufactured an Enhanced Grunt 37508 | -6/Cetus | Manufactured an Enhanced Grunt 37533 | -6/Cetus | Manufactured an Enhanced Grunt 37533 | -6/Cetus | Spotted Cetus Guard 37533 | -6/Cetus | Spotted Cetus Guard 37534 | -6/Cetus | Spotted Cetus Guard 37536 | -6/Cetus | Spotted Cetus Guard 37541 | -6/Cetus | Allies destroyed Cetus Guard 37546 | -6/Cetus | Destroyed Cetus Guard 37549 | -6/Cetus | Allies destroyed Cetus Guard 37552 | -6/Cetus | Destroyed Cetus Guard 37576 | -6/Cetus | Discovered exit to Factory (range 15) 37598 | -6/Cetus | Met Revision 17 37728 | -6/Cetus | Identified exit to Archives 37732 | -6/Cetus | Entered Archives 37732 | -6/Archives | Accompanied by 7 allies (A7) 37897 | -6/Archives | Discovered exit to Factory (range 15) 37969 | -6/Archives | Discovered new exit (range 16) 38092 | -6/Archives | Build established: Hauler-Mutant 38192 | -6/Archives | Discovered new exit (range 14) 38710 | -6/Archives | Identified exit to Hub_04(d) 39386 | -6/Archives | Unable to access archive contents 40427 | -6/Archives | Build established: Hauler-Gunner 41717 | -6/Archives | Build established: Scavenger-Mutant 42199 | -6/Archives | Build established: Hauler-Gunner 42338 | -6/Archives | Entered Hub_04(d) 42338 | -6/Hub_04(d) | Accompanied by 4 allies 43292 | -6/Hub_04(d) | Garrison activated, responded to threat 43388 | -6/Hub_04(d) | First assault squad dispatched 43472 | -6/Hub_04(d) | Destroyed 7 combat bots 43504 | -6/Hub_04(d) | Discovered exit to Factory (range 19) 43540 | -6/Hub_04(d) | Identified Exp. System Shield 43541 | -6/Hub_04(d) | Network Hub disabled 43546 | -6/Hub_04(d) | Spotted Lightning 43553 | -6/Hub_04(d) | Spotted Lightning 43564 | -6/Hub_04(d) | Network Hub disabled 43564 | -6/Hub_04(d) | Spotted Lightning 43575 | -6/Hub_04(d) | System corruption reached 10% 43577 | -6/Hub_04(d) | Entered Factory 43577 | -5/Factory | Evolved 2 slots: Utility x2 43578 | -5/Factory | Identified exit to Upper Caves 43877 | -5/Factory | First assault squad dispatched 44068 | -5/Factory | Discovered exit to Upper Caves (range 12) 44105 | -5/Factory | Entered Upper Caves 44201 | -5/Upper Caves | Learned Factory interactive machine intel 44318 | -5/Upper Caves | Build established: Scavenger-Gunner 44413 | -5/Upper Caves | Learned Factory emergency access door positions 44570 | -5/Upper Caves | Discovered new exit (range 10) 44586 | -5/Upper Caves | Identified exit to Upper Caves 44715 | -5/Upper Caves | Entered another Upper Caves area 44747 | -5/Upper Caves | Discovered new exit (range 9) 45383 | -5/Upper Caves | Build established: Hacker-Gunner 45631 | -5/Upper Caves | Spotted 0J-25F(f) 45631 | -5/Upper Caves | Spotted 92-39N(f) 45633 | -5/Upper Caves | Encountered a Master Thief 45633 | -5/Upper Caves | Encountered a Master Thief 45633 | -5/Upper Caves | Spotted OO-PGH(f) 45633 | -5/Upper Caves | Spotted T7-LTB(f) 45633 | -5/Upper Caves | Spotted 5Z-QQP(f) 45633 | -5/Upper Caves | Destroyed OO-PGH(f) 45633 | -5/Upper Caves | Discovered new exit (range 15) 45634 | -5/Upper Caves | Encountered a Master Thief 45634 | -5/Upper Caves | Encountered a Master Thief 45635 | -5/Upper Caves | Trap Reconfigurator stolen by Master Thief 45635 | -5/Upper Caves | 8R-AWN's Boregun stolen by Master Thief 45640 | -5/Upper Caves | Destroyed 92-39N(f) 45645 | -5/Upper Caves | Centrium Medium Armor Plating stolen by Master Thief 45653 | -5/Upper Caves | Centrium Heavy Treads stolen by Master Thief 45760 | -5/Upper Caves | Identified exit to Zhirov 45768 | -5/Upper Caves | Entered Zhirov 45768 | -5/Zhirov | Discovered new exit (range 3) 45817 | -5/Zhirov | Met Zhirov 45879 | -5/Zhirov | Learned location of Quarantine (-2) 45879 | -5/Zhirov | Learned location of Testing (-3) 45879 | -5/Zhirov | Learned location of Command (-1) 45895 | -5/Zhirov | Zhirov requested help retrieving the SGEMP Prototype 45941 | -5/Zhirov | Found Alien Artifact 45941 | -5/Zhirov | Identified Integrated Reactor 45941 | -5/Zhirov | Installed Integrated Reactor, increased core energy generation (+10) 45962 | -5/Zhirov | Build established: Gunner 45973 | -5/Zhirov | Found Alien Artifact 46344 | -5/Zhirov | Identified exit to Proximity Caves 46350 | -5/Zhirov | Entered Proximity Caves 46682 | -4/Proximity Caves | Attracted the attention of an 0b10 outpost 46734 | -4/Proximity Caves | Destroyed 7 combat bots 47138 | -4/Proximity Caves | Learned Research trap positions 48016 | -4/Proximity Caves | Discovered new exit (range 5) 48024 | -4/Proximity Caves | Spotted B-86 Titan 48026 | -4/Proximity Caves | Identified exit to Factory 48029 | -4/Proximity Caves | Entered Factory 48029 | -4/Factory | Evolved 2 slots: Utility x2 48030 | -4/Factory | Identified exit to Upper Caves 48032 | -4/Factory | Loaded intel: 46 interactive machine locations 48904 | -4/Factory | Destroyed 7 combat bots 49142 | -4/Factory | Lost 4 parts (1p1n1u1w) 49218 | -4/Factory | Lost 6 parts (4n2w) 49377 | -4/Factory | Entered Upper Caves 49388 | -4/Upper Caves | Encountered a Warlord checkpoint 49474 | -4/Upper Caves | Build established: Scavenger-Gunner 49919 | -4/Upper Caves | Discovered new exit (range 8) 49927 | -4/Upper Caves | Identified exit to Upper Caves 49975 | -4/Upper Caves | Entered another Upper Caves area 49989 | -4/Upper Caves | Attracted the attention of an 0b10 outpost 50009 | -4/Upper Caves | System corruption reached 10% 50051 | -4/Upper Caves | Lost 3 parts (2u1w) 50087 | -4/Upper Caves | Destroyed 13 combat bots 50299 | -4/Upper Caves | Lost 3 parts (1n2u) 50859 | -4/Upper Caves | Discovered new exit (range 14) 50907 | -4/Upper Caves | Entered Warlord 50963 | -4/Warlord | System corruption cleaned by Quarantine Array 51678 | -4/Warlord | Learned 4 Research zone layouts 51678 | -4/Warlord | Learned 4 Testing zone layouts 51678 | -4/Warlord | Learned 4 Testing zone layouts 51678 | -4/Warlord | Learned 4 Quarantine zone layouts 51680 | -4/Warlord | Learned Research emergency access door positions 51680 | -4/Warlord | Learned Armory stockpile data 51796 | -4/Warlord | Visited the Vortex Lab 51805 | -4/Warlord | Found Prototype Energy Gun 51805 | -4/Warlord | Identified Vortex Rifle 51807 | -4/Warlord | Warlord's base attacked by MAIN.C 51813 | -4/Warlord | Found Vortex Rifle 51818 | -4/Warlord | Found Prototype Piercing Weapon 51926 | -4/Warlord | Met Warlord 51941 | -4/Warlord | Identified Vortex Lance 51960 | -4/Warlord | Found Prototype Reactor 51970 | -4/Warlord | Found Prototype Device 51970 | -4/Warlord | Identified Exp. Cloaking Device 51982 | -4/Warlord | Found Prototype Device 51982 | -4/Warlord | Identified System Purifier 51998 | -4/Warlord | Found Prototype Hackware 52157 | -4/Warlord | Warlord forces counterattacked 52216 | -4/Warlord | Spotted Executioner 52249 | -4/Warlord | Spotted Executioner 52290 | -4/Warlord | Found Prototype Processor 52291 | -4/Warlord | Identified Exp. Core Analyzer 52319 | -4/Warlord | Found Prototype Processor 52319 | -4/Warlord | Identified Exp. Targeting Computer 52377 | -4/Warlord | Discovered new exit (range 11) 52405 | -4/Warlord | Entered Proximity Caves 52405 | -3/Proximity Caves | Accompanied by 2 allies 52457 | -3/Proximity Caves | Attracted the attention of an 0b10 outpost 52670 | -3/Proximity Caves | Lost 4 parts (4u) 52898 | -3/Proximity Caves | Build established: Scavenger-Tank 53055 | -3/Proximity Caves | Spotted B-86 Titan 53076 | -3/Proximity Caves | Destroyed B-86 Titan 53150 | -3/Proximity Caves | Discovered new exit (range 8) 53165 | -3/Proximity Caves | Entered Research 53165 | -3/Research | Accompanied by 2 allies 53165 | -3/Research | Evolved 2 slots: Power x1, Propulsion x1 53166 | -3/Research | Identified exit to Armory 53168 | -3/Research | Loaded intel: 97 trap records 53194 | -3/Research | Identified System Mapper 53297 | -3/Research | Spotted B-86 Titan 53328 | -3/Research | Allies destroyed B-86 Titan 53365 | -3/Research | Revision forces began assault on 0b10 53398 | -3/Research | Met up with Revision 17++ 53516 | -3/Research | Repaired Centrium Heavy Treads 53612 | -3/Research | Build established: Scavenger-Gunner 53718 | -3/Research | Identified exit to Testing 53865 | -3/Research | Research terminal network offline 54111 | -3/Research | Fabricated Huge Storage Unit (x1) 54166 | -3/Research | Spotted Striker 54170 | -3/Research | Allies destroyed Striker 54177 | -3/Research | Spotted Executioner 54195 | -3/Research | Found Exp. Targeting Computer 54221 | -3/Research | Spotted Striker 54296 | -3/Research | Spotted Striker 54302 | -3/Research | Spotted Striker 54306 | -3/Research | Destroyed Striker 54324 | -3/Research | Found Exp. Core Analyzer 54518 | -3/Research | Discovered new exit (range 7) 54588 | -3/Research | Entered Testing 54776 | -3/Testing | Fabricated Adv. Heavy Siege Treads (x2) 54788 | -3/Testing | Local fabrication network quarantined 54822 | -3/Testing | Fabricated Adv. Heavy Siege Treads? 54838 | -3/Testing | First assault squad dispatched 55245 | -3/Testing | Protovariant out of control (PX-R156LXN84I) 55245 | -3/Testing | Unleashed a protovariant (PX-R156LXN84I) 55250 | -3/Testing | Discovered new exit (range 14) 55251 | -3/Testing | Spotted Investigator 55252 | -3/Testing | Scanned by Researcher 55273 | -3/Testing | Destroyed Investigator 55747 | -3/Testing | Found Prototype Ballistic Cannon 55967 | -3/Testing | Identified Transdimensional Reconstructor 55967 | -3/Testing | Identified Omega Cannon 55967 | -3/Testing | Identified Vortex Chain Reactor 56036 | -3/Testing | Repaired Helical Railgun 56090 | -3/Testing | System corruption reached 10% 56191 | -3/Testing | Repaired Exp. Sensor Array 56214 | -3/Testing | Repaired Hyp. Railgun 56243 | -3/Testing | Found Prototype Launcher 56243 | -3/Testing | Identified Containment Facilitator 56301 | -3/Testing | Identified exit to Research 56302 | -3/Testing | Entered Research 56302 | -2/Research | Warlord forces began assault on 0b10 56302 | -2/Research | Evolved 2 slots: Propulsion x2 56350 | -2/Research | Fabricated Hyp. Railgun (x2) 56382 | -2/Research | Fabricated Hyp. Railgun (x2) 56412 | -2/Research | Research machine network offline 56443 | -2/Research | Met up with Warlord 56634 | -2/Research | Borebot progress halted 56800 | -2/Research | Local fabrication network quarantined 56836 | -2/Research | Borebot progress halted 56851 | -2/Research | Borebot progress halted 57314 | -2/Research | Warlord destroyed during the assault 57323 | -2/Research | Discovered new exit (range 8) 57333 | -2/Research | Identified exit to Access 57367 | -2/Research | Spotted Striker 57373 | -2/Research | Destroyed Striker 57646 | -2/Research | Spotted Striker 57647 | -2/Research | Destroyed Striker 57648 | -2/Research | Spotted Striker 57652 | -2/Research | Destroyed Striker 57724 | -2/Research | Discovered exit to Access (range 3) 57816 | -2/Research | Discovered new exit (range 6) 57822 | -2/Research | Identified exit to Quarantine 57823 | -2/Research | Entered Quarantine 57934 | -2/Quarantine | Found Alien Impact Weapon 58093 | -2/Quarantine | Found Alien Artifact 58093 | -2/Quarantine | Identified Phase Redirector 58188 | -2/Quarantine | Repaired Hyp. Railgun 58508 | -2/Quarantine | Found Alien Artifact 58704 | -2/Quarantine | Identified Core Reset Matrix 58866 | -2/Quarantine | Found Alien Artifact 58867 | -2/Quarantine | Identified Hpw. Transdimensional Reconstructor 58867 | -2/Quarantine | Warped through subspace 59001 | -2/Quarantine | Found Alien Artifact 59001 | -2/Quarantine | Identified Phase Armor 59711 | -2/Quarantine | Discovered exit to Access (range 4) 59735 | -2/Quarantine | Found Alien Artifact 59823 | -2/Quarantine | First assault squad dispatched 60010 | -2/Quarantine | Identified Core Stripper 60011 | -2/Quarantine | Spotted Fortress 60038 | -2/Quarantine | Destroyed Fortress 60077 | -2/Quarantine | Found Prototype Device 60077 | -2/Quarantine | Identified Thermal Barrier 60080 | -2/Quarantine | Found Prototype Device 60080 | -2/Quarantine | Identified Exp. Force Field 60095 | -2/Quarantine | Found Prototype Device 60095 | -2/Quarantine | Identified EM Dispersion Field 60112 | -2/Quarantine | Found Antimissile System 60209 | -2/Quarantine | Discovered new exit (range 5) 60214 | -2/Quarantine | Identified exit to Section 7 60217 | -2/Quarantine | Entered Section 7 60250 | -2/Section 7 | Found Alien Artifact 60749 | -2/Section 7 | First assault squad dispatched 61014 | -2/Section 7 | Identified Integrated Mediator 61014 | -2/Section 7 | Installed Integrated Mediator, increased core attachment efficiency. 61071 | -2/Section 7 | Found Integrated Mediator 61071 | -2/Section 7 | Installed Integrated Mediator, increased core attachment efficiency. 61137 | -2/Section 7 | Spotted B-90 Cyclops 61139 | -2/Section 7 | Core integrity fell below 50% 61147 | -2/Section 7 | Destroyed B-90 Cyclops 61293 | -2/Section 7 | Found Exp. Target Analyzer 61402 | -2/Section 7 | Spotted Executioner 61409 | -2/Section 7 | Spotted Executioner 61418 | -2/Section 7 | Destroyed Executioner 61430 | -2/Section 7 | Found Exp. Targeting Computer 61616 | -2/Section 7 | Spotted B-99 Colossus 61713 | -2/Section 7 | Destroyed B-99 Colossus 61828 | -2/Section 7 | Found Alien Artifact 61828 | -2/Section 7 | Identified LRC Energy Well 61828 | -2/Section 7 | Installed LRC Energy Well, increased energy storage capacity (+250) 61837 | -2/Section 7 | Found Alien Artifact 61837 | -2/Section 7 | Identified LRC Insulator 61837 | -2/Section 7 | Installed LRC Insulator, gained EM resistance (25) 61840 | -2/Section 7 | Found Alien Artifact 61840 | -2/Section 7 | Identified LRC Armor 61840 | -2/Section 7 | Installed LRC Armor, increased core integrity (+250) 61947 | -2/Section 7 | Destroyed 8 combat bots 62219 | -2/Section 7 | Spotted Alpha 7 62221 | -2/Section 7 | Spotted Alpha 7 62253 | -2/Section 7 | Destroyed Alpha 7 62289 | -2/Section 7 | Destroyed Alpha 7 62311 | -2/Section 7 | Lost 3 parts (1p1n1u) 62505 | -2/Section 7 | High security lockdown imminent 62530 | -2/Section 7 | Found Alien Artifact 62582 | -2/Section 7 | Identified Spacefold Activator 62585 | -2/Section 7 | High security lockdown engaged 62589 | -2/Section 7 | Discovered exit to Access (range 13) 62596 | -2/Section 7 | Core integrity fell below 20% 62596 | -2/Section 7 | Entered Access 62596 | -1/Access | Evolved 2 slots: Utility x2 62625 | -1/Access | Lost 13 parts (1p6n3u3w) 62636 | -1/Access | Found Exp. Core Analyzer 62834 | -1/Access | Discovered new exit (range 5) 62838 | -1/Access | Identified exit to Surface 62840 | *** | Escaped! Last Messages --------------- 62785_ Field strength at 55. 62786_ Field strength at 46. 62787_ Field strength at 37. 62788_ Field strength at 28. 62789_ Field strength at 19. 62790_ Field strength at 10. 62791_ Field strength at 1. 62792_ Stasis field depleted. 62797_ U-05 Engineer lays Concrete. 62805_ Dropped Drone Bay. 62805_ >> Lost connection to Drone. 62822_ Exp. Targeting Computer destroyed. 62830_ Connecting with Terminal... >>Open Sealed Barrier opened. 62831_ Imp. System Shield destroyed. 62834_ The Access Shell folds into the floor. 62834_ EXIT=FOUND 62838_ EXIT=IDENTIFIED: SURFACE 62840_ Enh. Quantum Rifle destroyed. Map ----- +----------------------------------------------------+ | ! # # #????????????????????????? | | ######### # ##???????????????????????? | | ???#??#?# # #????????????????????????? | | ????????# # #????????????????????????? | | ????????# # #??????#?????????????????? | | ??#?????# # #????????????????????????? | | ????????# !+ #???????????? ???????????? | | ????????# # #?????????????? ?????????? | | ????????# # | ##???????????????????????? | | ???????## ##############????????????????????????? | | ?#?????# ########################+########????? | | ??????## ? | | ???????# % ?? | | ???????# ######### s ""#####+###?????????? | | ???????######???????# ss""#?????????????????? | | ???????????????#????# ss ""#?????????????????? | | ????????????????????# T#?????????????????? | | ??????????????#?????# ""#?????????? ???#??? | | ?????#??????????????# ""#?????????????????? | | ???????????????????## ""##????????"???????? | | ????#??????#???????# #????????????????? | | ???????????????????## ##????????????????? | | ????????????????????# #?????????????????? | | ????????????????????# #?????????????????? | | ????????????????????# #?????????????????? | | ?????????????????#??# @" #?#???????????????? | | ?? ?????????????????# "" #?????????????????? | | ??????? ????????????# #?????????????????? | | ???????????????#?#??# #?????#???????#?#?? | | ???????????????????## #????#????????????? | | ??????? ????????????#""""""""""##????????????????? | | ?????????????#???#???????????????????????????????? | | ??????????????????????"??"???????????????????????? | | ?????????????????#???????????????????????????????? | | ????????????????????#????????????????????????????? | | ?????????????????????????????????????????????????? | | ?????????????????????????????????????????????????? | | ?????????????????????????????????????????????????? | | ??????????????? ?????????????????????????????????? | | ????????????????????? ???????????????????????????? | | ?????????????????????????????????????????????????? | | ?????????????????????????????????????????????????? | | ?????????????????????????????????????????????????? | | ?????????????????????????????????????????????????? | | ?????????????????????????????????????????????????? | | ?????????????????????????????????????????????????? | | ?????????????????????????????????????????????????? | | ?????????????????????????????????????????????????? | | ?????????????????????????????????????????????????? | | ?????????????????????????????????????????????????? | +----------------------------------------------------+ Best States ------------- Heat Dissipation 146 Coolant Potential 120 Energy Generation 55 Energy Capacity 1670 Matter Stores 300 Matter Capacity 300 Sight Range 24 Robot Scan Range 20 Terrain Scan Range 24 Terrain Scan Density 1010 Armor Coverage 1250 Resistance: TH 50 Resistance: EM 100 Propulsion Shielding 90 Utility Shielding 66 Weapon Shielding 66 Weapon Cycling 25 Phase Shifting 10 Evasion (%) 55 Targeting Accuracy 32 Target Analysis 10 Core Analysis 15 Armor Integrity Analysis 40 Recoil Reduction 8 Energy Filtering 50 Particle Charging 30 Offensive Hacking 20 Defensive Hacking 16 Item Schematics ----------------- Huge Storage Unit | -9/Materials | Scanalyzed Hacking Suite | -9/Materials | Scanalyzed Imp. Trap Extractor | -9/Materials | Scanalyzed Lgt. Armor Plating | -9/Materials | Scanalyzed Humpback | -8/Materials | Scanalyzed Exp. Sensor Array | -8/Materials | Scanalyzed Trap Extractor | -8/Storage | Hacked Trap Scanner | -8/Storage | Hacked Beamcaster | -7/Zion | Free Hvy. Beamcaster | -7/Zion | Free Riot Gun | -7/Zion | Free Battle Cannon | -7/Zion | Free Flamer | -7/Zion | Free Assault Drone Bay | -5/Zhirov | Free Exp. Optical Array | -5/Zhirov | Free Imp. Arc Thrower | -5/Zhirov | Free Exp. Heat Sink | -5/Zhirov | Free Adv. Heavy Siege Treads | -3/Research | Hacked Hyp. Railgun | -3/Testing | Scanalyzed Robot Schematics ------------------ None Fabricated ------------ Huge Storage Unit | x1 | -3/Research Adv. Heavy Siege Treads | x2 | -3/Testing Adv. Heavy Siege Treads | x2 | -3/Testing Hyp. Railgun | x2 | -2/Research Hyp. Railgun | x2 | -2/Research Alien Tech Used ----------------- Integrated Reactor Phase Redirector High-powered Transdimensional Reconstructor Phase Armor Core Stripper Integrated Mediator LRC Energy Well LRC Insulator LRC Armor Spacefold Activator Achievements -------------- Equal Opportunity Bot Superinsulated Challenges ------------ None Game ------ Seed HypervelocityNeutronExpander Manual? 0 Play Time 07:56:59 Cumulative 302.2 hours Start 2021.08.28 @ 14:26:33 End 2021.08.31 @ 13:56:04 Sessions 33 Manual Loads 0 Difficulty Rogue Special Mode None Game No. 127 Rogue 127 Adventurer 0 Explorer 0 Win Type 0 Total 12 Types 10/0/0/1/0/1/0/0/0 Lore% 84 Gallery% 85 Achievement% 76 Wizard Run 0 Options --------- ASCII 0 Keyboard 0 Movement Numpad Keybinds 0 Fullscreen 1 Font 18/Smallcaps Map View 76x50 Tactical HUD 1 Map Filters NONE Filters NONE Steam 1 RUN: 4d468477-2a35-423a-946b-54bf0551265e